Workbook

Sheet Отчет
A1: Текущий рейтинг студентов (до пересдач) | AK1: Приложение 3
A2: Дата выгрузки: 07.07.2015 | AK2: к Положению о рейтинговой системе комплексной оценки знаний студентов
A3: Период: c 2014/2015 учебный год II семестр по 2014/2015 учебный год II семестр
A4: Факультет/отделение: Факультет коммуникаций, медиа и дизайна
A5: Направление подготовки: Направление "Журналистика"
A6: Уровень образования, номер курса: Бакалавриат 4 курс | J6: - студенты имеющие задолженности
I7: * | J7: - изучение по ИУП
A8: Место | B8: Номер зачетной книжки | C8: Студент | D8: ID | E8: Группа | F8: Образовательная программа студента | G8: Вид места | I8: 2014/2015 учебный год 3 модуль | W8: 2014/2015 учебный год 4 модуль | AE8: Кредитно-рейтинговая оценка | AF8: Нормировочный коэффициент | AG8: Сумма всех кредитов | AH8: Нормированная кредитно-рейтинговая оценка | AI8: Сумма всех оценок | AJ8: Количество всех оценок | AK8: Средний балл | AL8: Минимальный балл | AM8: Наличие неудовлетворительных оценок и неявок | AN8: Количество удовлетворительных оценок | AO8: Номер места
I9: Экзамен | T9: Зачет | W9: Экзамен | AB9: Зачет
H10: Номер Row | I10: Государственная информационная политика | J10: Деловая журналистика | K10: Деловая журналистика | L10: Иностранный язык (английский) (итоговый госэкзамен) | M10: Иностранный язык (английский) | N10: Мастерство ведущего теле- и радио программ | O10: Современные коммуникативные технологии | P10: Теория и практика русского литературного языка | Q10: Цифровой кинематограф: новые концепции визуального | R10: Эволюция взаимоотношений медиа и бизнеса в России | S10: Эволюция взаимоотношений медиа и бизнеса в России | T10: Мастерство ведущего теле- и радио программ | U10: Продюсерское мастерство | V10: Цифровой кинематограф: новые концепции визуального | W10: Второй иностранный язык (французский) | X10: Курсовая работа | Y10: Междисциплинарный экзамен по направлению подготовки (итоговый госэкзамен) | Z10: Подготовка и защита выпускной квалификационной работы | AA10: Преддипломная практика | AB10: Преддипломная практика | AC10: Физическая культура | AD10: Физическая культура
A11: Число текущих кредитов: | I11: 3 | J11: 5.5 | K11: 9 | L11: 3 | M11: 4 | N11: 3 | O11: 5.5 | P11: 6 | Q11: 3 | R11: 3 | S11: 4 | T11: 3 | U11: 3 | V11: 3 | W11: 4.14 | X11: 5 | Y11: 3 | Z11: 6 | AA11: 5 | AB11: 4 | AC11: 0.17 | AD11: 1
A12: 1 | B12: 1104126 | C12: Павленко Валентина Юрьевна | D12: 475528836 | E12: 447ж | F12: Журналистика | G12: Бюдж | H12: =MATCH(D12,Данные!$D:$D,0) -> 76 | K12: 10 | L12: 10 | M12: 10 | P12: 10 | R12: 10 | Y12: 10 | Z12: 10 | AA12: 10 | AD12: 10 | AE12: 400 | AF12: =IF(AG12 > 0, MAX(AG$12:AG$80) / AG12, 0) -> 1.125 | AG12: 40 | AH12: =AE12*AF12 -> 450 | AI12: 90 | AJ12: 9 | AK12: =IF(AJ12 > 0,AI12/AJ12,0) -> 10 | AL12: =MIN($I12:AD12) -> 10 | AN12: 9 | AO12: 1 | AP12: ОК
A13: 2 | B13: 1114153 | C13: Гликин Константин Максимович | D13: 475517709 | E13: 445ж | F13: Журналистика | G13: Бюдж | H13: =MATCH(D13,Данные!$D:$D,0) -> 57 | K13: 10 | L13: 10 | M13: 10 | P13: 9 | R13: 10 | Y13: 10 | Z13: 10 | AA13: 10 | AD13: 10 | AE13: 394 | AF13: =IF(AG13 > 0, MAX(AG$12:AG$80) / AG13, 0) -> 1.125 | AG13: 40 | AH13: =AE13*AF13 -> 443.25 | AI13: 89 | AJ13: 9 | AK13: =IF(AJ13 > 0,AI13/AJ13,0) -> 9.888888889 | AL13: =MIN($I13:AD13) -> 9 | AN13: 9 | AO13: 2 | AP13: ОК
A14: 3 | B14: 1104101 | C14: Агрызкова Юлия Игоревна | D14: 475522967 | E14: 447ж | F14: Журналистика | G14: Бюдж | H14: =MATCH(D14,Данные!$D:$D,0) -> 22 | K14: 9 | L14: 8 | M14: 10 | P14: 8 | R14: 10 | Y14: 10 | Z14: 10 | AA14: 10 | AD14: 10 | AE14: 373 | AF14: =IF(AG14 > 0, MAX(AG$12:AG$80) / AG14, 0) -> 1.125 | AG14: 40 | AH14: =AE14*AF14 -> 419.625 | AI14: 85 | AJ14: 9 | AK14: =IF(AJ14 > 0,AI14/AJ14,0) -> 9.444444444 | AL14: =MIN($I14:AD14) -> 8 | AN14: 9 | AO14: 3 | AP14: ОК
A15: 4 | B15: 1104132 | C15: Разумовская Мария Алексеевна | D15: 475529260 | E15: 447ж | F15: Журналистика | G15: Бюдж | H15: =MATCH(D15,Данные!$D:$D,0) -> 14 | I15: 10 | K15: 10 | L15: 9 | M15: 9 | P15: 9 | Y15: 9 | Z15: 8 | AA15: 10 | AD15: 10 | AE15: 372 | AF15: =IF(AG15 > 0, MAX(AG$12:AG$80) / AG15, 0) -> 1.125 | AG15: 40 | AH15: =AE15*AF15 -> 418.5 | AI15: 84 | AJ15: 9 | AK15: =IF(AJ15 > 0,AI15/AJ15,0) -> 9.333333333 | AL15: =MIN($I15:AD15) -> 8 | AN15: 9 | AO15: 4 | AP15: ОК
A16: 5 | B16: 1104110 | C16: Сорокина Мария Михайловна | D16: 475526257 | E16: 447ж | F16: Журналистика | G16: Бюдж | H16: =MATCH(D16,Данные!$D:$D,0) -> 70 | K16: 10 | L16: 8 | M16: 8 | N16: 10 | P16: 8 | Y16: 10 | Z16: 9 | AA16: 10 | AD16: 10 | AE16: 368 | AF16: =IF(AG16 > 0, MAX(AG$12:AG$80) / AG16, 0) -> 1.125 | AG16: 40 | AH16: =AE16*AF16 -> 414 | AI16: 83 | AJ16: 9 | AK16: =IF(AJ16 > 0,AI16/AJ16,0) -> 9.222222222 | AL16: =MIN($I16:AD16) -> 8 | AN16: 9 | AO16: 5 | AP16: ОК
A17: 6 - 7 | B17: 1104115 | C17: Кристалинская Мария Валерьевна | D17: 475527155 | E17: 447ж | F17: Журналистика | G17: Бюдж | H17: =MATCH(D17,Данные!$D:$D,0) -> 72 | K17: 9 | L17: 9 | M17: 9 | P17: 8 | R17: 10 | Y17: 10 | Z17: 9 | AA17: 10 | AD17: 10 | AE17: 366 | AF17: =IF(AG17 > 0, MAX(AG$12:AG$80) / AG17, 0) -> 1.125 | AG17: 40 | AH17: =AE17*AF17 -> 411.75 | AI17: 84 | AJ17: 9 | AK17: =IF(AJ17 > 0,AI17/AJ17,0) -> 9.333333333 | AL17: =MIN($I17:AD17) -> 8 | AN17: 9 | AO17: 6 | AP17: ОК
B18: 1114146 | C18: Бабаянц Виолетта Владимировна | D18: 481545758 | E18: 447ж | F18: Журналистика | G18: Комм | H18: =MATCH(D18,Данные!$D:$D,0) -> 37 | K18: 9 | L18: 7 | M18: 10 | N18: 10 | P18: 9 | Y18: 10 | Z18: 10 | AA18: 8 | AD18: 10 | AE18: 366 | AF18: =IF(AG18 > 0, MAX(AG$12:AG$80) / AG18, 0) -> 1.125 | AG18: 40 | AH18: =AE18*AF18 -> 411.75 | AI18: 83 | AJ18: 9 | AK18: =IF(AJ18 > 0,AI18/AJ18,0) -> 9.222222222 | AL18: =MIN($I18:AD18) -> 7 | AN18: 9 | AO18: 7 | AP18: ОК
A19: 8 | B19: 1114185 | C19: Ткачук Анфиса Сергеевна | D19: 481543686 | E19: 446ж | F19: Журналистика | G19: Бюдж | H19: =MATCH(D19,Данные!$D:$D,0) -> 34 | K19: 8 | L19: 9 | M19: 10 | P19: 10 | Q19: 9 | Y19: 9 | Z19: 8 | AA19: 10 | AD19: 10 | AE19: 361 | AF19: =IF(AG19 > 0, MAX(AG$12:AG$80) / AG19, 0) -> 1.125 | AG19: 40 | AH19: =AE19*AF19 -> 406.125 | AI19: 83 | AJ19: 9 | AK19: =IF(AJ19 > 0,AI19/AJ19,0) -> 9.222222222 | AL19: =MIN($I19:AD19) -> 8 | AN19: 9 | AO19: 8 | AP19: ОК
A20: 9 | B20: 1104128 | C20: Пожидаева Ирина Владимировна | D20: 475581231 | E20: 446ж | F20: Журналистика | G20: Бюдж | H20: =MATCH(D20,Данные!$D:$D,0) -> 63 | K20: 9 | L20: 9 | M20: 10 | P20: 8 | Q20: 10 | Y20: 6 | Z20: 9 | AA20: 10 | AD20: 10 | AE20: 358 | AF20: =IF(AG20 > 0, MAX(AG$12:AG$80) / AG20, 0) -> 1.125 | AG20: 40 | AH20: =AE20*AF20 -> 402.75 | AI20: 81 | AJ20: 9 | AK20: =IF(AJ20 > 0,AI20/AJ20,0) -> 9 | AL20: =MIN($I20:AD20) -> 6 | AN20: 9 | AO20: 9 | AP20: ОК
A21: 10 - 12 | B21: 1104139 | C21: Фалькон Анастасия Александровна | D21: 475529718 | E21: 447ж | F21: Журналистика | G21: Бюдж | H21: =MATCH(D21,Данные!$D:$D,0) -> 3 | I21: 10 | K21: 9 | L21: 10 | M21: 10 | P21: 7 | Y21: 8 | Z21: 10 | AA21: 8 | AD21: 10 | AE21: 357 | AF21: =IF(AG21 > 0, MAX(AG$12:AG$80) / AG21, 0) -> 1.125 | AG21: 40 | AH21: =AE21*AF21 -> 401.625 | AI21: 82 | AJ21: 9 | AK21: =IF(AJ21 > 0,AI21/AJ21,0) -> 9.111111111 | AL21: =MIN($I21:AD21) -> 7 | AN21: 9 | AO21: 10 | AP21: ОК
B22: 1004107 | C22: Василиади Елена Христоевна | D22: 481546380 | E22: 447ж | F22: Журналистика | G22: Комм | H22: =MATCH(D22,Данные!$D:$D,0) -> 38 | K22: 10 | L22: 9 | M22: 10 | N22: 10 | P22: 8 | Y22: 6 | Z22: 9 | AA22: 8 | AD22: 10 | AE22: 357 | AF22: =IF(AG22 > 0, MAX(AG$12:AG$80) / AG22, 0) -> 1.125 | AG22: 40 | AH22: =AE22*AF22 -> 401.625 | AI22: 80 | AJ22: 9 | AK22: =IF(AJ22 > 0,AI22/AJ22,0) -> 8.888888889 | AL22: =MIN($I22:AD22) -> 6 | AN22: 9 | AO22: 11 | AP22: ОК
B23: 1114176 | C23: Романова Юлия Владимировна | D23: 481543173 | E23: 446ж | F23: Журналистика | G23: Комм | H23: =MATCH(D23,Данные!$D:$D,0) -> 33 | K23: 9 | L23: 7 | M23: 9 | P23: 8 | Q23: 10 | Y23: 7 | Z23: 10 | AA23: 10 | AD23: 10 | AE23: 357 | AF23: =IF(AG23 > 0, MAX(AG$12:AG$80) / AG23, 0) -> 1.125 | AG23: 40 | AH23: =AE23*AF23 -> 401.625 | AI23: 80 | AJ23: 9 | AK23: =IF(AJ23 > 0,AI23/AJ23,0) -> 8.888888889 | AL23: =MIN($I23:AD23) -> 7 | AN23: 9 | AO23: 12 | AP23: ОК
A24: 13 | B24: 1104120 | C24: Львова Анастасия Артуровна | D24: 475528055 | E24: 447ж | F24: Журналистика | G24: Бюдж | H24: =MATCH(D24,Данные!$D:$D,0) -> 74 | K24: 9 | L24: 10 | M24: 9 | P24: 8 | Q24: 9 | Y24: 10 | Z24: 8 | AA24: 9 | AD24: 10 | AE24: 355 | AF24: =IF(AG24 > 0, MAX(AG$12:AG$80) / AG24, 0) -> 1.125 | AG24: 40 | AH24: =AE24*AF24 -> 399.375 | AI24: 82 | AJ24: 9 | AK24: =IF(AJ24 > 0,AI24/AJ24,0) -> 9.111111111 | AL24: =MIN($I24:AD24) -> 8 | AN24: 9 | AO24: 13 | AP24: ОК
A25: 14 - 15 | B25: 1104123 | C25: Мухаметдинова Элина Шамилевна | D25: 475583224 | E25: 447ж | F25: Журналистика | G25: Бюдж | H25: =MATCH(D25,Данные!$D:$D,0) -> 13 | I25: 10 | K25: 8 | L25: 10 | M25: 9 | P25: 8 | Y25: 8 | Z25: 9 | AA25: 10 | AD25: 10 | AE25: 354 | AF25: =IF(AG25 > 0, MAX(AG$12:AG$80) / AG25, 0) -> 1.125 | AG25: 40 | AH25: =AE25*AF25 -> 398.25 | AI25: 82 | AJ25: 9 | AK25: =IF(AJ25 > 0,AI25/AJ25,0) -> 9.111111111 | AL25: =MIN($I25:AD25) -> 8 | AN25: 9 | AO25: 14 | AP25: ОК
B26: 1104107 | C26: Данилова Анастасия Андреевна | D26: 481532910 | E26: 445ж | F26: Журналистика | G26: Комм | H26: =MATCH(D26,Данные!$D:$D,0) -> 7 | I26: 10 | K26: 8 | L26: 9 | M26: 8 | P26: 9 | Y26: 8 | Z26: 10 | AA26: 9 | AD26: 10 | AE26: 354 | AF26: =IF(AG26 > 0, MAX(AG$12:AG$80) / AG26, 0) -> 1.125 | AG26: 40 | AH26: =AE26*AF26 -> 398.25 | AI26: 81 | AJ26: 9 | AK26: =IF(AJ26 > 0,AI26/AJ26,0) -> 9 | AL26: =MIN($I26:AD26) -> 8 | AN26: 9 | AO26: 15 | AP26: ОК
A27: 16 - 17 | B27: 1104127 | C27: Пенкина Анастасия Валерьевна | D27: 475521309 | E27: 446ж | F27: Журналистика | G27: Бюдж | H27: =MATCH(D27,Данные!$D:$D,0) -> 86 | K27: 8 | L27: 10 | M27: 10 | P27: 10 | Q27: 8 | Y27: 9 | Z27: 8 | AA27: 8 | AD27: 10 | AE27: 351 | AF27: =IF(AG27 > 0, MAX(AG$12:AG$80) / AG27, 0) -> 1.125 | AG27: 40 | AH27: =AE27*AF27 -> 394.875 | AI27: 81 | AJ27: 9 | AK27: =IF(AJ27 > 0,AI27/AJ27,0) -> 9 | AL27: =MIN($I27:AD27) -> 8 | AN27: 9 | AO27: 16 | AP27: ОК
B28: 1114186 | C28: Федотова Елена Андреевна | D28: 481544213 | E28: 446ж | F28: Журналистика | G28: Комм | H28: =MATCH(D28,Данные!$D:$D,0) -> 35 | K28: 9 | L28: 9 | M28: 9 | P28: 6 | Q28: 8 | Y28: 9 | Z28: 10 | AA28: 10 | AD28: 10 | AE28: 351 | AF28: =IF(AG28 > 0, MAX(AG$12:AG$80) / AG28, 0) -> 1.125 | AG28: 40 | AH28: =AE28*AF28 -> 394.875 | AI28: 80 | AJ28: 9 | AK28: =IF(AJ28 > 0,AI28/AJ28,0) -> 8.888888889 | AL28: =MIN($I28:AD28) -> 6 | AN28: 9 | AO28: 17 | AP28: ОК
A29: 18 | B29: 1114163 | C29: Кардаш Матвей Борисович | D29: 481548650 | E29: 447ж | F29: Журналистика | G29: Комм | H29: =MATCH(D29,Данные!$D:$D,0) -> 41 | K29: 9 | L29: 8 | M29: 9 | N29: 8 | P29: 7 | Y29: 7 | Z29: 10 | AA29: 10 | AD29: 10 | AE29: 348 | AF29: =IF(AG29 > 0, MAX(AG$12:AG$80) / AG29, 0) -> 1.125 | AG29: 40 | AH29: =AE29*AF29 -> 391.5 | AI29: 78 | AJ29: 9 | AK29: =IF(AJ29 > 0,AI29/AJ29,0) -> 8.666666667 | AL29: =MIN($I29:AD29) -> 7 | AN29: 9 | AO29: 18 | AP29: ОК
A30: 19 | B30: 1104134 | C30: Рыхлик Наталья Николаевна | D30: 475519583 | E30: 445ж | F30: Журналистика | G30: Бюдж | H30: =MATCH(D30,Данные!$D:$D,0) -> 82 | K30: 8 | L30: 7 | M30: 9 | P30: 10 | Q30: 10 | Y30: 8 | Z30: 8 | AA30: 9 | AD30: 10 | AE30: 346 | AF30: =IF(AG30 > 0, MAX(AG$12:AG$80) / AG30, 0) -> 1.125 | AG30: 40 | AH30: =AE30*AF30 -> 389.25 | AI30: 79 | AJ30: 9 | AK30: =IF(AJ30 > 0,AI30/AJ30,0) -> 8.777777778 | AL30: =MIN($I30:AD30) -> 7 | AN30: 9 | AO30: 19 | AP30: ОК
A31: 20 | B31: 1104108 | C31: Донцова Анна Юрьевна | D31: 475525818 | E31: 447ж | F31: Журналистика | G31: Бюдж | H31: =MATCH(D31,Данные!$D:$D,0) -> 69 | K31: 9 | L31: 7 | M31: 9 | P31: 8 | R31: 10 | Y31: 7 | Z31: 8 | AA31: 10 | AD31: 10 | AE31: 345 | AF31: =IF(AG31 > 0, MAX(AG$12:AG$80) / AG31, 0) -> 1.125 | AG31: 40 | AH31: =AE31*AF31 -> 388.125 | AI31: 78 | AJ31: 9 | AK31: =IF(AJ31 > 0,AI31/AJ31,0) -> 8.666666667 | AL31: =MIN($I31:AD31) -> 7 | AN31: 9 | AO31: 20 | AP31: ОК
A32: 21 - 22 | B32: 1104102 | C32: Акумова Анна Дмитриевна | D32: 475523457 | E32: 447ж | F32: Журналистика | G32: Бюдж | H32: =MATCH(D32,Данные!$D:$D,0) -> 23 | K32: 7 | L32: 10 | M32: 10 | P32: 8 | Q32: 9 | Y32: 7 | Z32: 10 | AA32: 9 | AD32: 10 | AE32: 344 | AF32: =IF(AG32 > 0, MAX(AG$12:AG$80) / AG32, 0) -> 1.125 | AG32: 40 | AH32: =AE32*AF32 -> 387 | AI32: 80 | AJ32: 9 | AK32: =IF(AJ32 > 0,AI32/AJ32,0) -> 8.888888889 | AL32: =MIN($I32:AD32) -> 7 | AN32: 9 | AO32: 21 | AP32: ОК
B33: 1114180 | C33: Самарина Евгения Олеговна | D33: 481550428 | E33: 447ж | F33: Журналистика | G33: Комм | H33: =MATCH(D33,Данные!$D:$D,0) -> 27 | K33: 10 | L33: 7 | M33: 8 | N33: 9 | P33: 7 | Y33: 10 | Z33: 7 | AA33: 10 | AD33: 10 | AE33: 344 | AF33: =IF(AG33 > 0, MAX(AG$12:AG$80) / AG33, 0) -> 1.125 | AG33: 40 | AH33: =AE33*AF33 -> 387 | AI33: 78 | AJ33: 9 | AK33: =IF(AJ33 > 0,AI33/AJ33,0) -> 8.666666667 | AL33: =MIN($I33:AD33) -> 7 | AN33: 9 | AO33: 22 | AP33: ОК
A34: 23 | B34: 1104113 | C34: Ихно Дарья Сергеевна | D34: 475526751 | E34: 447ж | F34: Журналистика | G34: Бюдж | H34: =MATCH(D34,Данные!$D:$D,0) -> 71 | K34: 7 | L34: 8 | M34: 10 | P34: 9 | Q34: 10 | Y34: 8 | Z34: 8 | AA34: 10 | AD34: 10 | AE34: 343 | AF34: =IF(AG34 > 0, MAX(AG$12:AG$80) / AG34, 0) -> 1.125 | AG34: 40 | AH34: =AE34*AF34 -> 385.875 | AI34: 80 | AJ34: 9 | AK34: =IF(AJ34 > 0,AI34/AJ34,0) -> 8.888888889 | AL34: =MIN($I34:AD34) -> 7 | AN34: 9 | AO34: 23 | AP34: ОК
A35: 24 | B35: 1114149 | C35: Вергазова Анна Тимуровна | D35: 481546960 | E35: 447ж | F35: Журналистика | G35: Комм | H35: =MATCH(D35,Данные!$D:$D,0) -> 39 | K35: 9 | L35: 10 | M35: 8 | P35: 8 | R35: 10 | Y35: 10 | Z35: 6 | AA35: 9 | AD35: 10 | AE35: 342 | AF35: =IF(AG35 > 0, MAX(AG$12:AG$80) / AG35, 0) -> 1.125 | AG35: 40 | AH35: =AE35*AF35 -> 384.75 | AI35: 80 | AJ35: 9 | AK35: =IF(AJ35 > 0,AI35/AJ35,0) -> 8.888888889 | AL35: =MIN($I35:AD35) -> 6 | AN35: 9 | AO35: 24 | AP35: ОК
A36: 25 - 26 | B36: 1104114 | C36: Козырев Макар Денисович | D36: 475520112 | E36: 446ж | F36: Журналистика | G36: Бюдж | H36: =MATCH(D36,Данные!$D:$D,0) -> 16 | I36: 9 | K36: 7 | L36: 10 | M36: 10 | P36: 6 | Y36: 10 | Z36: 10 | AA36: 9 | AD36: 10 | AE36: 341 | AF36: =IF(AG36 > 0, MAX(AG$12:AG$80) / AG36, 0) -> 1.125 | AG36: 40 | AH36: =AE36*AF36 -> 383.625 | AI36: 81 | AJ36: 9 | AK36: =IF(AJ36 > 0,AI36/AJ36,0) -> 9 | AL36: =MIN($I36:AD36) -> 6 | AN36: 9 | AO36: 25 | AP36: ОК
B37: 1104141 | C37: Чумакова Инга Константиновна | D37: 475530733 | E37: 447ж | F37: Журналистика | G37: Бюдж | H37: =MATCH(D37,Данные!$D:$D,0) -> 79 | K37: 7 | L37: 8 | M37: 10 | P37: 8 | Q37: 9 | Y37: 8 | Z37: 10 | AA37: 9 | AD37: 10 | AE37: 341 | AF37: =IF(AG37 > 0, MAX(AG$12:AG$80) / AG37, 0) -> 1.125 | AG37: 40 | AH37: =AE37*AF37 -> 383.625 | AI37: 79 | AJ37: 9 | AK37: =IF(AJ37 > 0,AI37/AJ37,0) -> 8.777777778 | AL37: =MIN($I37:AD37) -> 7 | AN37: 9 | AO37: 26 | AP37: ОК
A38: 27 - 28 | B38: 1104103 | C38: Бочарова Анастасия Денисовна | D38: 475524374 | E38: 447ж | F38: Журналистика | G38: Бюдж | H38: =MATCH(D38,Данные!$D:$D,0) -> 67 | K38: 8 | L38: 7 | M38: 9 | P38: 8 | R38: 9 | Y38: 7 | Z38: 9 | AA38: 10 | AD38: 10 | AE38: 339 | AF38: =IF(AG38 > 0, MAX(AG$12:AG$80) / AG38, 0) -> 1.125 | AG38: 40 | AH38: =AE38*AF38 -> 381.375 | AI38: 77 | AJ38: 9 | AK38: =IF(AJ38 > 0,AI38/AJ38,0) -> 8.555555556 | AL38: =MIN($I38:AD38) -> 7 | AN38: 9 | AO38: 27 | AP38: ОК
B39: 1104129 | C39: Полибенцева Анна Владимировна | D39: 475521694 | E39: 446ж | F39: Журналистика | G39: Бюдж | H39: =MATCH(D39,Данные!$D:$D,0) -> 87 | K39: 9 | L39: 8 | M39: 9 | P39: 8 | Q39: 8 | Y39: 8 | Z39: 7 | AA39: 10 | AD39: 10 | AE39: 339 | AF39: =IF(AG39 > 0, MAX(AG$12:AG$80) / AG39, 0) -> 1.125 | AG39: 40 | AH39: =AE39*AF39 -> 381.375 | AI39: 77 | AJ39: 9 | AK39: =IF(AJ39 > 0,AI39/AJ39,0) -> 8.555555556 | AL39: =MIN($I39:AD39) -> 7 | AN39: 9 | AO39: 28 | AP39: ОК
A40: 29 - 30 | B40: 1104116 | C40: Кудряшова Юлия Ивановна | D40: 475527601 | E40: 447ж | F40: Журналистика | G40: Бюдж | H40: =MATCH(D40,Данные!$D:$D,0) -> 73 | K40: 8 | L40: 7 | M40: 8 | P40: 7 | R40: 10 | Y40: 9 | Z40: 9 | AA40: 10 | AD40: 10 | AE40: 338 | AF40: =IF(AG40 > 0, MAX(AG$12:AG$80) / AG40, 0) -> 1.125 | AG40: 40 | AH40: =AE40*AF40 -> 380.25 | AI40: 78 | AJ40: 9 | AK40: =IF(AJ40 > 0,AI40/AJ40,0) -> 8.666666667 | AL40: =MIN($I40:AD40) -> 7 | AN40: 9 | AO40: 29 | AP40: ОК
B41: 1104131 | C41: Понтус Юлия Игоревна | D41: 475522118 | E41: 446ж | F41: Журналистика | G41: Бюдж | H41: =MATCH(D41,Данные!$D:$D,0) -> 20 | K41: 9 | L41: 7 | M41: 9 | P41: 8 | R41: 10 | Y41: 6 | Z41: 9 | AA41: 8 | AD41: 10 | AE41: 338 | AF41: =IF(AG41 > 0, MAX(AG$12:AG$80) / AG41, 0) -> 1.125 | AG41: 40 | AH41: =AE41*AF41 -> 380.25 | AI41: 76 | AJ41: 9 | AK41: =IF(AJ41 > 0,AI41/AJ41,0) -> 8.444444444 | AL41: =MIN($I41:AD41) -> 6 | AN41: 9 | AO41: 30 | AP41: ОК
A42: 31 | B42: 1114147 | C42: Васильева Маргарита Николаевна | D42: 475517232 | E42: 445ж | F42: Журналистика | G42: Бюдж | H42: =MATCH(D42,Данные!$D:$D,0) -> 56 | K42: 5 | L42: 9 | M42: 10 | P42: 8 | Q42: 10 | Y42: 9 | Z42: 10 | AA42: 9 | AD42: 10 | AE42: 332 | AF42: =IF(AG42 > 0, MAX(AG$12:AG$80) / AG42, 0) -> 1.125 | AG42: 40 | AH42: =AE42*AF42 -> 373.5 | AI42: 80 | AJ42: 9 | AK42: =IF(AJ42 > 0,AI42/AJ42,0) -> 8.888888889 | AL42: =MIN($I42:AD42) -> 5 | AN42: 9 | AO42: 31 | AP42: ОК
A43: 32 | B43: 1104109 | C43: Дюкарева Мария Юрьевна | D43: 475518127 | E43: 445ж | F43: Журналистика | G43: Бюдж | H43: =MATCH(D43,Данные!$D:$D,0) -> 9 | I43: 9 | K43: 7 | L43: 9 | M43: 10 | P43: 8 | Q43: 9 | Y43: 7 | Z43: 8 | AA43: 9 | AD43: 10 | AE43: 356 | AF43: =IF(AG43 > 0, MAX(AG$12:AG$80) / AG43, 0) -> 1.046511628 | AG43: 43 | AH43: =AE43*AF43 -> 372.5581395 | AI43: 86 | AJ43: 10 | AK43: =IF(AJ43 > 0,AI43/AJ43,0) -> 8.6 | AL43: =MIN($I43:AD43) -> 7 | AN43: 10 | AO43: 32 | AP43: ОК
A44: 33 | B44: 1114175 | C44: Реутова Полина Сергеевна | D44: 481542689 | E44: 446ж | F44: Журналистика | G44: Комм | H44: =MATCH(D44,Данные!$D:$D,0) -> 5 | I44: 9 | K44: 8 | L44: 7 | M44: 8 | P44: 9 | Y44: 7 | Z44: 8 | AA44: 9 | AD44: 10 | AE44: 330 | AF44: =IF(AG44 > 0, MAX(AG$12:AG$80) / AG44, 0) -> 1.125 | AG44: 40 | AH44: =AE44*AF44 -> 371.25 | AI44: 75 | AJ44: 9 | AK44: =IF(AJ44 > 0,AI44/AJ44,0) -> 8.333333333 | AL44: =MIN($I44:AD44) -> 7 | AN44: 9 | AO44: 33 | AP44: ОК
A45: 34 | B45: 1104124 | C45: Нагдалиева Злата Фархадовна | D45: 475520518 | E45: 446ж | F45: Журналистика | G45: Бюдж | H45: =MATCH(D45,Данные!$D:$D,0) -> 84 | K45: 7 | L45: 6 | M45: 10 | P45: 8 | Q45: 8 | Y45: 8 | Z45: 10 | AA45: 8 | AD45: 10 | AE45: 327 | AF45: =IF(AG45 > 0, MAX(AG$12:AG$80) / AG45, 0) -> 1.125 | AG45: 40 | AH45: =AE45*AF45 -> 367.875 | AI45: 75 | AJ45: 9 | AK45: =IF(AJ45 > 0,AI45/AJ45,0) -> 8.333333333 | AL45: =MIN($I45:AD45) -> 6 | AN45: 9 | AO45: 34 | AP45: ОК
A46: 35 | B46: 1114162 | C46: Калачина Анна Андреевна | D46: 481534499 | E46: 445ж | F46: Журналистика | G46: Комм | H46: =MATCH(D46,Данные!$D:$D,0) -> 48 | K46: 7 | L46: 9 | M46: 10 | P46: 7 | Q46: 9 | Y46: 10 | Z46: 7 | AA46: 9 | AD46: 10 | AE46: 326 | AF46: =IF(AG46 > 0, MAX(AG$12:AG$80) / AG46, 0) -> 1.125 | AG46: 40 | AH46: =AE46*AF46 -> 366.75 | AI46: 78 | AJ46: 9 | AK46: =IF(AJ46 > 0,AI46/AJ46,0) -> 8.666666667 | AL46: =MIN($I46:AD46) -> 7 | AN46: 9 | AO46: 35 | AP46: ОК
A47: 36 | B47: 1114152 | C47: Гербер Александр Романович | D47: 481539788 | E47: 446ж | F47: Журналистика | G47: Комм | H47: =MATCH(D47,Данные!$D:$D,0) -> 53 | K47: 8 | L47: 8 | M47: 10 | N47: 8 | P47: 8 | Y47: 8 | Z47: 7 | AA47: 8 | AD47: 10 | AE47: 324 | AF47: =IF(AG47 > 0, MAX(AG$12:AG$80) / AG47, 0) -> 1.125 | AG47: 40 | AH47: =AE47*AF47 -> 364.5 | AI47: 75 | AJ47: 9 | AK47: =IF(AJ47 > 0,AI47/AJ47,0) -> 8.333333333 | AL47: =MIN($I47:AD47) -> 7 | AN47: 9 | AO47: 36 | AP47: ОК
A48: 37 - 38 | B48: 1114145 | C48: Асекритова Екатерина Александровна | D48: 481545222 | E48: 447ж | F48: Журналистика | G48: Комм | H48: =MATCH(D48,Данные!$D:$D,0) -> 36 | K48: 8 | L48: 10 | M48: 8 | P48: 8 | R48: 10 | Y48: 7 | Z48: 5 | AA48: 10 | AD48: 10 | AE48: 323 | AF48: =IF(AG48 > 0, MAX(AG$12:AG$80) / AG48, 0) -> 1.125 | AG48: 40 | AH48: =AE48*AF48 -> 363.375 | AI48: 76 | AJ48: 9 | AK48: =IF(AJ48 > 0,AI48/AJ48,0) -> 8.444444444 | AL48: =MIN($I48:AD48) -> 5 | AN48: 9 | AO48: 37 | AP48: ОК
B49: 1114184 | C49: Старкова Ольга Андреевна | D49: 481536522 | E49: 445ж | F49: Журналистика | G49: Комм | H49: =MATCH(D49,Данные!$D:$D,0) -> 52 | K49: 6 | L49: 9 | M49: 9 | P49: 8 | Q49: 8 | Y49: 8 | Z49: 10 | AA49: 8 | AD49: 10 | AE49: 323 | AF49: =IF(AG49 > 0, MAX(AG$12:AG$80) / AG49, 0) -> 1.125 | AG49: 40 | AH49: =AE49*AF49 -> 363.375 | AI49: 76 | AJ49: 9 | AK49: =IF(AJ49 > 0,AI49/AJ49,0) -> 8.444444444 | AL49: =MIN($I49:AD49) -> 6 | AN49: 9 | AO49: 38 | AP49: ОК
A50: 39 | B50: 1104143 | C50: Юхим Оксана Михайловна | D50: 475531344 | E50: 447ж | F50: Журналистика | G50: Бюдж | H50: =MATCH(D50,Данные!$D:$D,0) -> 55 | K50: 8 | L50: 10 | M50: 9 | N50: 8 | P50: 7 | Y50: 7 | Z50: 7 | AA50: 9 | AD50: 10 | AE50: 322 | AF50: =IF(AG50 > 0, MAX(AG$12:AG$80) / AG50, 0) -> 1.125 | AG50: 40 | AH50: =AE50*AF50 -> 362.25 | AI50: 75 | AJ50: 9 | AK50: =IF(AJ50 > 0,AI50/AJ50,0) -> 8.333333333 | AL50: =MIN($I50:AD50) -> 7 | AN50: 9 | AO50: 39 | AP50: ОК
A51: 40 - 41 | B51: 1114181 | C51: Сарвина Наталья Александровна | D51: 481536005 | E51: 445ж | F51: Журналистика | G51: Комм | H51: =MATCH(D51,Данные!$D:$D,0) -> 51 | K51: 7 | L51: 5 | M51: 8 | P51: 8 | R51: 10 | Y51: 10 | Z51: 8 | AA51: 9 | AD51: 10 | AE51: 321 | AF51: =IF(AG51 > 0, MAX(AG$12:AG$80) / AG51, 0) -> 1.125 | AG51: 40 | AH51: =AE51*AF51 -> 361.125 | AI51: 75 | AJ51: 9 | AK51: =IF(AJ51 > 0,AI51/AJ51,0) -> 8.333333333 | AL51: =MIN($I51:AD51) -> 5 | AN51: 9 | AO51: 40 | AP51: ОК
B52: 1114172 | C52: Мозжерова Анна Сергеевна | D52: 481541627 | E52: 446ж | F52: Журналистика | G52: Комм | H52: =MATCH(D52,Данные!$D:$D,0) -> 18 | I52: 8 | K52: 7 | L52: 5 | M52: 9 | P52: 7 | Y52: 9 | Z52: 9 | AA52: 10 | AD52: 10 | AE52: 321 | AF52: =IF(AG52 > 0, MAX(AG$12:AG$80) / AG52, 0) -> 1.125 | AG52: 40 | AH52: =AE52*AF52 -> 361.125 | AI52: 74 | AJ52: 9 | AK52: =IF(AJ52 > 0,AI52/AJ52,0) -> 8.222222222 | AL52: =MIN($I52:AD52) -> 5 | AN52: 9 | AO52: 41 | AP52: ОК
A53: 42 | B53: 1114171 | C53: Мирошкина Дарья Александровна | D53: 481549768 | E53: 447ж | F53: Журналистика | G53: Комм | H53: =MATCH(D53,Данные!$D:$D,0) -> 26 | K53: 9 | L53: 6 | M53: 7 | P53: 4 | R53: 10 | Y53: 8 | Z53: 9 | AA53: 10 | AD53: 10 | AE53: 319 | AF53: =IF(AG53 > 0, MAX(AG$12:AG$80) / AG53, 0) -> 1.125 | AG53: 40 | AH53: =AE53*AF53 -> 358.875 | AI53: 73 | AJ53: 9 | AK53: =IF(AJ53 > 0,AI53/AJ53,0) -> 8.111111111 | AL53: =MIN($I53:AD53) -> 4 | AN53: 9 | AO53: 42 | AP53: ОК
A54: 43 - 46 | B54: 1114166 | C54: Латынин Антон Валерьевич | D54: 475519046 | E54: 445ж | F54: Журналистика | G54: Бюдж | H54: =MATCH(D54,Данные!$D:$D,0) -> 15 | I54: 10 | K54: 7 | L54: 7 | M54: 8 | P54: 7 | Y54: 10 | Z54: 8 | AA54: 8 | AD54: 10 | AE54: 316 | AF54: =IF(AG54 > 0, MAX(AG$12:AG$80) / AG54, 0) -> 1.125 | AG54: 40 | AH54: =AE54*AF54 -> 355.5 | AI54: 75 | AJ54: 9 | AK54: =IF(AJ54 > 0,AI54/AJ54,0) -> 8.333333333 | AL54: =MIN($I54:AD54) -> 7 | AN54: 9 | AO54: 43 | AP54: ОК
B55: 1104135 | C55: Соловьева Маргарита Владимировна | D55: 475584015 | E55: 447ж | F55: Журналистика | G55: Бюдж | H55: =MATCH(D55,Данные!$D:$D,0) -> 42 | K55: 7 | L55: 8 | M55: 9 | P55: 6 | R55: 10 | Y55: 8 | Z55: 8 | AA55: 9 | AD55: 10 | AE55: 316 | AF55: =IF(AG55 > 0, MAX(AG$12:AG$80) / AG55, 0) -> 1.125 | AG55: 40 | AH55: =AE55*AF55 -> 355.5 | AI55: 75 | AJ55: 9 | AK55: =IF(AJ55 > 0,AI55/AJ55,0) -> 8.333333333 | AL55: =MIN($I55:AD55) -> 6 | AN55: 9 | AO55: 44 | AP55: ОК
B56: 1114192 | C56: Асангулова Рахат Талантбековна | D56: 475523923 | E56: 447ж | F56: Журналистика | G56: Бюдж | H56: =MATCH(D56,Данные!$D:$D,0) -> 4 | I56: 10 | K56: 7 | L56: 8 | M56: 7 | P56: 7 | Y56: 5 | Z56: 9 | AA56: 10 | AD56: 10 | AE56: 316 | AF56: =IF(AG56 > 0, MAX(AG$12:AG$80) / AG56, 0) -> 1.125 | AG56: 40 | AH56: =AE56*AF56 -> 355.5 | AI56: 73 | AJ56: 9 | AK56: =IF(AJ56 > 0,AI56/AJ56,0) -> 8.111111111 | AL56: =MIN($I56:AD56) -> 5 | AN56: 9 | AO56: 45 | AP56: ОК
B57: 1104111 | C57: Зайцева Екатерина Николаевна | D57: 475518599 | E57: 445ж | F57: Журналистика | G57: Бюдж | H57: =MATCH(D57,Данные!$D:$D,0) -> 80 | K57: 10 | L57: 7 | M57: 8 | P57: 7 | Q57: 8 | Y57: 5 | Z57: 7 | AA57: 8 | AD57: 10 | AE57: 316 | AF57: =IF(AG57 > 0, MAX(AG$12:AG$80) / AG57, 0) -> 1.125 | AG57: 40 | AH57: =AE57*AF57 -> 355.5 | AI57: 70 | AJ57: 9 | AK57: =IF(AJ57 > 0,AI57/AJ57,0) -> 7.777777778 | AL57: =MIN($I57:AD57) -> 5 | AN57: 9 | AO57: 46 | AP57: ОК
A58: 47 - 49 | B58: 1114168 | C58: Мальцева Елизавета Олеговна | D58: 481541119 | E58: 446ж | F58: Журналистика | G58: Комм | H58: =MATCH(D58,Данные!$D:$D,0) -> 29 | K58: 6 | L58: 7 | M58: 9 | P58: 6 | R58: 10 | Y58: 10 | Z58: 8 | AA58: 10 | AD58: 10 | AE58: 315 | AF58: =IF(AG58 > 0, MAX(AG$12:AG$80) / AG58, 0) -> 1.125 | AG58: 40 | AH58: =AE58*AF58 -> 354.375 | AI58: 76 | AJ58: 9 | AK58: =IF(AJ58 > 0,AI58/AJ58,0) -> 8.444444444 | AL58: =MIN($I58:AD58) -> 6 | AN58: 9 | AO58: 47 | AP58: ОК
B59: 1114157 | C59: Егорова Анна Андреевна | D59: 481533400 | E59: 445ж | F59: Журналистика | G59: Комм | H59: =MATCH(D59,Данные!$D:$D,0) -> 46 | K59: 7 | L59: 6 | M59: 10 | P59: 8 | Q59: 10 | Y59: 8 | Z59: 7 | AA59: 8 | AD59: 10 | AE59: 315 | AF59: =IF(AG59 > 0, MAX(AG$12:AG$80) / AG59, 0) -> 1.125 | AG59: 40 | AH59: =AE59*AF59 -> 354.375 | AI59: 74 | AJ59: 9 | AK59: =IF(AJ59 > 0,AI59/AJ59,0) -> 8.222222222 | AL59: =MIN($I59:AD59) -> 6 | AN59: 9 | AO59: 48 | AP59: ОК
B60: 1114167 | C60: Лукьянов Алексей Константинович | D60: 481534976 | E60: 445ж | F60: Журналистика | G60: Комм | H60: =MATCH(D60,Данные!$D:$D,0) -> 49 | K60: 7 | L60: 9 | M60: 10 | P60: 8 | Q60: 8 | Y60: 7 | Z60: 7 | AA60: 8 | AD60: 10 | AE60: 315 | AF60: =IF(AG60 > 0, MAX(AG$12:AG$80) / AG60, 0) -> 1.125 | AG60: 40 | AH60: =AE60*AF60 -> 354.375 | AI60: 74 | AJ60: 9 | AK60: =IF(AJ60 > 0,AI60/AJ60,0) -> 8.222222222 | AL60: =MIN($I60:AD60) -> 7 | AN60: 9 | AO60: 49 | AP60: ОК
A61: 50 | B61: 100036617 | C61: Зиятдинова Раина Рамилевна | D61: 475579340 | E61: 445ж | F61: Журналистика | G61: Бюдж | H61: =MATCH(D61,Данные!$D:$D,0) -> 60 | K61: 6 | L61: 7 | M61: 9 | P61: 6 | Q61: 10 | Y61: 7 | Z61: 10 | AA61: 9 | AD61: 10 | AE61: 313 | AF61: =IF(AG61 > 0, MAX(AG$12:AG$80) / AG61, 0) -> 1.125 | AG61: 40 | AH61: =AE61*AF61 -> 352.125 | AI61: 74 | AJ61: 9 | AK61: =IF(AJ61 > 0,AI61/AJ61,0) -> 8.222222222 | AL61: =MIN($I61:AD61) -> 6 | AN61: 9 | AO61: 50 | AP61: ОК
A62: 51 | B62: 1104104 | C62: Гернеза Варвара Андреевна | D62: 475524972 | E62: 447ж | F62: Журналистика | G62: Бюдж | H62: =MATCH(D62,Данные!$D:$D,0) -> 68 | K62: 8 | L62: 6 | M62: 8 | N62: 9 | P62: 6 | Y62: 8 | Z62: 7 | AA62: 10 | AD62: 10 | AE62: 311 | AF62: =IF(AG62 > 0, MAX(AG$12:AG$80) / AG62, 0) -> 1.125 | AG62: 40 | AH62: =AE62*AF62 -> 349.875 | AI62: 72 | AJ62: 9 | AK62: =IF(AJ62 > 0,AI62/AJ62,0) -> 8 | AL62: =MIN($I62:AD62) -> 6 | AN62: 9 | AO62: 51 | AP62: ОК
A63: 52 - 53 | B63: 1104121 | C63: Максимов Егор Игоревич | D63: 475528458 | E63: 447ж | F63: Журналистика | G63: Бюдж | H63: =MATCH(D63,Данные!$D:$D,0) -> 75 | K63: 8 | L63: 8 | M63: 9 | N63: 8 | P63: 5 | Y63: 9 | Z63: 7 | AA63: 9 | AD63: 10 | AE63: 310 | AF63: =IF(AG63 > 0, MAX(AG$12:AG$80) / AG63, 0) -> 1.125 | AG63: 40 | AH63: =AE63*AF63 -> 348.75 | AI63: 73 | AJ63: 9 | AK63: =IF(AJ63 > 0,AI63/AJ63,0) -> 8.111111111 | AL63: =MIN($I63:AD63) -> 5 | AN63: 9 | AO63: 52 | AP63: ОК
B64: 11102454 | C64: Гудова Юлия Викторовна | D64: 481532512 | E64: 445ж | F64: Журналистика | G64: Комм | H64: =MATCH(D64,Данные!$D:$D,0) -> 6 | I64: 9 | K64: 8 | L64: 6 | M64: 9 | P64: 7 | W64: 9 | Y64: 4 | Z64: 8 | AA64: 9 | AD64: 10 | AE64: 310 | AF64: =IF(AG64 > 0, MAX(AG$12:AG$80) / AG64, 0) -> 1.125 | AG64: 40 | AH64: =AE64*AF64 -> 348.75 | AI64: 79 | AJ64: 10 | AK64: =IF(AJ64 > 0,AI64/AJ64,0) -> 7.9 | AL64: =MIN($I64:AD64) -> 4 | AN64: 10 | AO64: 53 | AP64: ОК
A65: 54 | B65: 1114144 | C65: Андреева Мария Дмитриевна | D65: 475582475 | E65: 447ж | F65: Журналистика | G65: Комм | H65: =MATCH(D65,Данные!$D:$D,0) -> 65 | K65: 6 | L65: 6 | M65: 8 | P65: 7 | R65: 10 | Y65: 6 | Z65: 9 | AA65: 10 | AD65: 10 | AE65: 308 | AF65: =IF(AG65 > 0, MAX(AG$12:AG$80) / AG65, 0) -> 1.125 | AG65: 40 | AH65: =AE65*AF65 -> 346.5 | AI65: 72 | AJ65: 9 | AK65: =IF(AJ65 > 0,AI65/AJ65,0) -> 8 | AL65: =MIN($I65:AD65) -> 6 | AN65: 9 | AO65: 54 | AP65: ОК
A66: 55 | B66: 1104125 | C66: Носик Виктория Павловна | D66: 475520912 | E66: 446ж | F66: Журналистика | G66: Бюдж | H66: =MATCH(D66,Данные!$D:$D,0) -> 85 | K66: 7 | L66: 9 | M66: 10 | P66: 7 | Q66: 8 | Y66: 6 | Z66: 7 | AA66: 8 | AD66: 10 | AE66: 306 | AF66: =IF(AG66 > 0, MAX(AG$12:AG$80) / AG66, 0) -> 1.125 | AG66: 40 | AH66: =AE66*AF66 -> 344.25 | AI66: 72 | AJ66: 9 | AK66: =IF(AJ66 > 0,AI66/AJ66,0) -> 8 | AL66: =MIN($I66:AD66) -> 6 | AN66: 9 | AO66: 55 | AP66: ОК
A67: 56 | B67: 10151075 | C67: Николаева Ирина Александровна | D67: 481542172 | E67: 446ж | F67: Журналистика | G67: Комм | H67: =MATCH(D67,Данные!$D:$D,0) -> 31 | K67: 7 | L67: 9 | M67: 9 | N67: 8 | P67: 6 | Y67: 7 | Z67: 8 | AA67: 8 | AD67: 10 | AE67: 305 | AF67: =IF(AG67 > 0, MAX(AG$12:AG$80) / AG67, 0) -> 1.125 | AG67: 40 | AH67: =AE67*AF67 -> 343.125 | AI67: 72 | AJ67: 9 | AK67: =IF(AJ67 > 0,AI67/AJ67,0) -> 8 | AL67: =MIN($I67:AD67) -> 6 | AN67: 9 | AO67: 56 | AP67: ОК
A68: 57 | B68: 1114170 | C68: Милушкова Полина Юрьевна | D68: 481549226 | E68: 447ж | F68: Журналистика | G68: Комм | H68: =MATCH(D68,Данные!$D:$D,0) -> 25 | K68: 4 | L68: 7 | M68: 8 | P68: 6 | Q68: 9 | Y68: 8 | Z68: 10 | AA68: 10 | AD68: 10 | AE68: 296 | AF68: =IF(AG68 > 0, MAX(AG$12:AG$80) / AG68, 0) -> 1.125 | AG68: 40 | AH68: =AE68*AF68 -> 333 | AI68: 72 | AJ68: 9 | AK68: =IF(AJ68 > 0,AI68/AJ68,0) -> 8 | AL68: =MIN($I68:AD68) -> 4 | AN68: 9 | AO68: 57 | AP68: ОК
A69: 58 | B69: 1104142 | C69: Шанталова Александра Спартаковна | D69: 475522503 | E69: 446ж | F69: Журналистика | G69: Бюдж | H69: =MATCH(D69,Данные!$D:$D,0) -> 17 | I69: 8 | K69: 6 | L69: 8 | M69: 9 | P69: 4 | Y69: 8 | Z69: 9 | AA69: 9 | AD69: 10 | AE69: 295 | AF69: =IF(AG69 > 0, MAX(AG$12:AG$80) / AG69, 0) -> 1.125 | AG69: 40 | AH69: =AE69*AF69 -> 331.875 | AI69: 71 | AJ69: 9 | AK69: =IF(AJ69 > 0,AI69/AJ69,0) -> 7.888888889 | AL69: =MIN($I69:AD69) -> 4 | AN69: 9 | AO69: 58 | AP69: ОК
A70: 59 | B70: 1104140 | C70: Хачатрян Ангелина Владиславовна | D70: 475530257 | E70: 447ж | F70: Журналистика | G70: Бюдж | H70: =MATCH(D70,Данные!$D:$D,0) -> 78 | K70: 5 | L70: 8 | M70: 8 | P70: 6 | R70: 10 | Y70: 7 | Z70: 7 | AA70: 10 | AD70: 10 | AE70: 290 | AF70: =IF(AG70 > 0, MAX(AG$12:AG$80) / AG70, 0) -> 1.125 | AG70: 40 | AH70: =AE70*AF70 -> 326.25 | AI70: 71 | AJ70: 9 | AK70: =IF(AJ70 > 0,AI70/AJ70,0) -> 7.888888889 | AL70: =MIN($I70:AD70) -> 5 | AN70: 9 | AO70: 59 | AP70: ОК
A71: 60 | B71: 1104133 | C71: Рыженкова Майя Ильинична | D71: 481535470 | E71: 445ж | F71: Журналистика | G71: Комм | H71: =MATCH(D71,Данные!$D:$D,0) -> 50 | K71: 7 | L71: 8 | M71: 8 | P71: 5 | R71: 9 | Y71: 6 | Z71: 7 | AA71: 8 | AD71: 10 | AE71: 286 | AF71: =IF(AG71 > 0, MAX(AG$12:AG$80) / AG71, 0) -> 1.125 | AG71: 40 | AH71: =AE71*AF71 -> 321.75 | AI71: 68 | AJ71: 9 | AK71: =IF(AJ71 > 0,AI71/AJ71,0) -> 7.555555556 | AL71: =MIN($I71:AD71) -> 5 | AN71: 9 | AO71: 60 | AP71: ОК
A72: 61 | B72: 1104137 | C72: Трубицына Александра Викторовна | D72: 475584653 | E72: 447ж | F72: Журналистика | G72: Комм | H72: =MATCH(D72,Данные!$D:$D,0) -> 43 | K72: 7 | L72: 5 | M72: 8 | N72: 8 | P72: 7 | X72: 6 * | Y72: 7 | Z72: 4 | AA72: 10 | AD72: 10 | AE72: 311 | AF72: =IF(AG72 > 0, MAX(AG$12:AG$80) / AG72, 0) -> 1 | AG72: 45 | AH72: =AE72*AF72 -> 311 | AI72: 72 | AJ72: 10 | AK72: =IF(AJ72 > 0,AI72/AJ72,0) -> 7.2 | AL72: =MIN($I72:AD72) -> 4 | AN72: 10 | AO72: 61 | AP72: ОК
A73: 62 - 63 | B73: 1114160 | C73: Игнатчук Ольга Ивановна | D73: 481548074 | E73: 447ж | F73: Журналистика | G73: Комм | H73: =MATCH(D73,Данные!$D:$D,0) -> 40 | K73: 6 | L73: 7 | M73: 7 | N73: 7 | P73: 4 | Y73: 6 | Z73: 8 | AA73: 10 | AD73: 10 | AE73: 274 | AF73: =IF(AG73 > 0, MAX(AG$12:AG$80) / AG73, 0) -> 1.125 | AG73: 40 | AH73: =AE73*AF73 -> 308.25 | AI73: 65 | AJ73: 9 | AK73: =IF(AJ73 > 0,AI73/AJ73,0) -> 7.222222222 | AL73: =MIN($I73:AD73) -> 4 | AN73: 9 | AO73: 62 | AP73: ОК
B74: 1114159 | C74: Заикина Полина Никитична | D74: 481533939 | E74: 445ж | F74: Журналистика | G74: Комм | H74: =MATCH(D74,Данные!$D:$D,0) -> 8 | I74: 6 | K74: 6 | L74: 6 | M74: 9 | P74: 6 | Y74: 5 | Z74: 7 | AA74: 9 | AD74: 10 | AE74: 274 | AF74: =IF(AG74 > 0, MAX(AG$12:AG$80) / AG74, 0) -> 1.125 | AG74: 40 | AH74: =AE74*AF74 -> 308.25 | AI74: 64 | AJ74: 9 | AK74: =IF(AJ74 > 0,AI74/AJ74,0) -> 7.111111111 | AL74: =MIN($I74:AD74) -> 5 | AN74: 9 | AO74: 63 | AP74: ОК
A75: 64 | B75: 1114161 | C75: Казокина Александра Сергеевна | D75: 475579737 | E75: 445ж | F75: Журналистика | G75: Комм | H75: =MATCH(D75,Данные!$D:$D,0) -> 11 | I75: 7 | K75: 7 | L75: 6 | M75: 9 | P75: 4 | Q75: 9 | Y75: 4 | Z75: 6 | AA75: 9 | AD75: 10 | AE75: 292 | AF75: =IF(AG75 > 0, MAX(AG$12:AG$80) / AG75, 0) -> 1.046511628 | AG75: 43 | AH75: =AE75*AF75 -> 305.5813953 | AI75: 71 | AJ75: 10 | AK75: =IF(AJ75 > 0,AI75/AJ75,0) -> 7.1 | AL75: =MIN($I75:AD75) -> 4 | AN75: 10 | AO75: 64 | AP75: ОК
A76: 65 | B76: 1114191 | C76: Кречетова Ангелина Олеговна | D76: 475580447 | E76: 445ж | F76: Журналистика | G76: Комм | H76: =MATCH(D76,Данные!$D:$D,0) -> 62 | K76: 4 | L76: 6 | M76: 9 | P76: 2 | R76: 10 | Y76: 8 | Z76: 8 | AA76: 10 | AD76: 10 | AE76: 264 | AF76: =IF(AG76 > 0, MAX(AG$12:AG$80) / AG76, 0) -> 1.125 | AG76: 40 | AH76: =AE76*AF76 -> 297 | AI76: 67 | AJ76: 9 | AK76: =IF(AJ76 > 0,AI76/AJ76,0) -> 7.444444444 | AL76: =MIN($I76:AD76) -> 2 | AM76: Да | AN76: 8 | AO76: 65 | AP76: ОК
A77: 66 | B77: 1114154 | C77: Голиков Александр Вячеславович | D77: 475578675 | E77: 445ж | F77: Журналистика | G77: Комм | H77: =MATCH(D77,Данные!$D:$D,0) -> 10 | I77: 5 | K77: 6 | L77: 8 | M77: 9 | P77: 4 | Y77: 6 | Z77: 7 | AA77: 8 | AD77: 10 | AE77: 263 | AF77: =IF(AG77 > 0, MAX(AG$12:AG$80) / AG77, 0) -> 1.125 | AG77: 40 | AH77: =AE77*AF77 -> 295.875 | AI77: 63 | AJ77: 9 | AK77: =IF(AJ77 > 0,AI77/AJ77,0) -> 7 | AL77: =MIN($I77:AD77) -> 4 | AN77: 9 | AO77: 66 | AP77: ОК
A78: 67 | B78: 1114164 | C78: Кириллов Евгений Александрович | D78: 481540398 | E78: 446ж | F78: Журналистика | G78: Комм | H78: =MATCH(D78,Данные!$D:$D,0) -> 54 | K78: 6 | L78: 8 | M78: 8 | N78: 6 | P78: 4 | Y78: 6 | Z78: 7 | AA78: 8 | AD78: 10 | AE78: 262 | AF78: =IF(AG78 > 0, MAX(AG$12:AG$80) / AG78, 0) -> 1.125 | AG78: 40 | AH78: =AE78*AF78 -> 294.75 | AI78: 63 | AJ78: 9 | AK78: =IF(AJ78 > 0,AI78/AJ78,0) -> 7 | AL78: =MIN($I78:AD78) -> 4 | AN78: 9 | AO78: 67 | AP78: ОК
A79: 68 | B79: 1114148 | C79: Васильева Анастасия Руслановна | D79: 475581664 | E79: 446ж | F79: Журналистика | G79: Комм | H79: =MATCH(D79,Данные!$D:$D,0) -> 12 | I79: 7 | K79: 2 | L79: 10 | M79: 8 | P79: 3 | Y79: 9 | Z79: 8 | AA79: 9 | AD79: 10 | AE79: 249 | AF79: =IF(AG79 > 0, MAX(AG$12:AG$80) / AG79, 0) -> 1.125 | AG79: 40 | AH79: =AE79*AF79 -> 280.125 | AI79: 66 | AJ79: 9 | AK79: =IF(AJ79 > 0,AI79/AJ79,0) -> 7.333333333 | AL79: =MIN($I79:AD79) -> 2 | AM79: Да | AN79: 7 | AO79: 68 | AP79: ОК
A80: 69 | B80: 2804108 | C80: Белодедова Маргарита Геннадьевна | D80: 972492801 | E80: 446ж | F80: Журналистика | G80: Комм | H80: =MATCH(D80,Данные!$D:$D,0) -> 19 | J80: 4 | L80: 6 | M80: 6 | O80: 6 | P80: 4 | S80: 6 | T80: 6 | U80: 4 | V80: 9 | AB80: 7 | AC80: 10 | AE80: 231.7 | AF80: =IF(AG80 > 0, MAX(AG$12:AG$80) / AG80, 0) -> 1.093028905 | AG80: 41.17 | AH80: =AE80*AF80 -> 253.2547972 | AI80: 68 | AJ80: 11 | AK80: =IF(AJ80 > 0,AI80/AJ80,0) -> 6.181818182 | AL80: =MIN($I80:AD80) -> 4 | AN80: 11 | AO80: 69 | AP80: ОК

Sheet Данные (hidden)
A1: ID | B1: Оценка из 10 баллов до пересдач | C1: Группа | D1: Студент | E1: Фамилия | F1: Имя | G1: Отчество | H1: Номер студенческого билета | I1: Строка учебного плана | J1: Текущих кредитов за испытание | K1: Вид испытания | L1: Календарный период по плану | M1: Неявка до пересдач | N1: В текущий рейтинг | O1: Текущих кредитов для студента | P1: Оценка зачет/незачет до пересдач | Q1: Является бюджетным | R1: Учебный план | S1: Вид записи РУП | T1: Вид записи ИУП | U1: Номер Row
A2: 1 | B2: 2 | C2: 3 | D2: 4 | E2: 5 | F2: 6 | G2: 7 | H2: 8 | I2: 9 | J2: 10 | K2: 11 | L2: 12 | M2: 13 | N2: 14 | O2: 15 | P2: 16 | Q2: 17 | R2: 18 | S2: 19 | T2: 20 | U2: 21
A3: 565790801 | B3: 10 | C3: 447ж | D3: 475529718 | E3: Фалькон | F3: Анастасия | G3: Александровна | H3: 1104139 | I3: Государственная информационная политика | J3: 3 | K3: Экзамен | L3: 2014/2015 учебный год 3 модуль | N3: 30 | O3: 3 | P3: 1 | Q3: 1 | R3: 414659754 | S3: 2098 | U3: stChoosen | V3: Журналистика | W3: =MATCH(D3,Отчет!$D:$D,0) -> 21
A4: 565790781 | B4: 10 | C4: 447ж | D4: 475523923 | E4: Асангулова | F4: Рахат | G4: Талантбековна | H4: 1114192 | I4: Государственная информационная политика | J4: 3 | K4: Экзамен | L4: 2014/2015 учебный год 3 модуль | N4: 30 | O4: 3 | P4: 1 | Q4: 1 | R4: 414659754 | S4: 2098 | U4: stChoosen | V4: Журналистика | W4: =MATCH(D4,Отчет!$D:$D,0) -> 56
A5: 565790773 | B5: 9 | C5: 446ж | D5: 481542689 | E5: Реутова | F5: Полина | G5: Сергеевна | H5: 1114175 | I5: Государственная информационная политика | J5: 3 | K5: Экзамен | L5: 2014/2015 учебный год 3 модуль | N5: 27 | O5: 3 | P5: 1 | Q5: 0 | R5: 414659754 | S5: 2098 | U5: stChoosen | V5: Журналистика | W5: =MATCH(D5,Отчет!$D:$D,0) -> 44
A6: 716901653 | B6: 9 | C6: 445ж | D6: 481532512 | E6: Гудова | F6: Юлия | G6: Викторовна | H6: 11102454 | I6: Государственная информационная политика | J6: 3 | K6: Экзамен | L6: 2014/2015 учебный год 3 модуль | N6: 27 | O6: 3 | P6: 1 | Q6: 0 | R6: 414659754 | S6: 2098 | U6: stChoosen | V6: Журналистика | W6: =MATCH(D6,Отчет!$D:$D,0) -> 64
A7: 565790745 | B7: 10 | C7: 445ж | D7: 481532910 | E7: Данилова | F7: Анастасия | G7: Андреевна | H7: 1104107 | I7: Государственная информационная политика | J7: 3 | K7: Экзамен | L7: 2014/2015 учебный год 3 модуль | N7: 30 | O7: 3 | P7: 1 | Q7: 0 | R7: 414659754 | S7: 2098 | U7: stChoosen | V7: Журналистика | W7: =MATCH(D7,Отчет!$D:$D,0) -> 26
A8: 565790749 | B8: 6 | C8: 445ж | D8: 481533939 | E8: Заикина | F8: Полина | G8: Никитична | H8: 1114159 | I8: Государственная информационная политика | J8: 3 | K8: Экзамен | L8: 2014/2015 учебный год 3 модуль | N8: 18 | O8: 3 | P8: 1 | Q8: 0 | R8: 414659754 | S8: 2098 | U8: stChoosen | V8: Журналистика | W8: =MATCH(D8,Отчет!$D:$D,0) -> 74
A9: 716219712 | B9: 9 | C9: 445ж | D9: 475518127 | E9: Дюкарева | F9: Мария | G9: Юрьевна | H9: 1104109 | I9: Государственная информационная политика | J9: 3 | K9: Экзамен | L9: 2014/2015 учебный год 3 модуль | N9: 27 | O9: 3 | P9: 1 | Q9: 1 | R9: 414659754 | S9: 2098 | U9: stChoosen | V9: Журналистика | W9: =MATCH(D9,Отчет!$D:$D,0) -> 43
A10: 565790741 | B10: 5 | C10: 445ж | D10: 475578675 | E10: Голиков | F10: Александр | G10: Вячеславович | H10: 1114154 | I10: Государственная информационная политика | J10: 3 | K10: Экзамен | L10: 2014/2015 учебный год 3 модуль | N10: 15 | O10: 3 | P10: 1 | Q10: 0 | R10: 414659754 | S10: 2098 | U10: stChoosen | V10: Журналистика | W10: =MATCH(D10,Отчет!$D:$D,0) -> 77
A11: 565790753 | B11: 7 | C11: 445ж | D11: 475579737 | E11: Казокина | F11: Александра | G11: Сергеевна | H11: 1114161 | I11: Государственная информационная политика | J11: 3 | K11: Экзамен | L11: 2014/2015 учебный год 3 модуль | N11: 21 | O11: 3 | P11: 1 | Q11: 0 | R11: 414659754 | S11: 2098 | T11: ikPlanned | U11: stChoosen | V11: Журналистика | W11: =MATCH(D11,Отчет!$D:$D,0) -> 75
A12: 565790761 | B12: 7 | C12: 446ж | D12: 475581664 | E12: Васильева | F12: Анастасия | G12: Руслановна | H12: 1114148 | I12: Государственная информационная политика | J12: 3 | K12: Экзамен | L12: 2014/2015 учебный год 3 модуль | N12: 21 | O12: 3 | P12: 1 | Q12: 0 | R12: 414659754 | S12: 2098 | U12: stChoosen | V12: Журналистика | W12: =MATCH(D12,Отчет!$D:$D,0) -> 79
A13: 565790793 | B13: 10 | C13: 447ж | D13: 475583224 | E13: Мухаметдинова | F13: Элина | G13: Шамилевна | H13: 1104123 | I13: Государственная информационная политика | J13: 3 | K13: Экзамен | L13: 2014/2015 учебный год 3 модуль | N13: 30 | O13: 3 | P13: 1 | Q13: 1 | R13: 414659754 | S13: 2098 | U13: stChoosen | V13: Журналистика | W13: =MATCH(D13,Отчет!$D:$D,0) -> 25
A14: 565790797 | B14: 10 | C14: 447ж | D14: 475529260 | E14: Разумовская | F14: Мария | G14: Алексеевна | H14: 1104132 | I14: Государственная информационная политика | J14: 3 | K14: Экзамен | L14: 2014/2015 учебный год 3 модуль | N14: 30 | O14: 3 | P14: 1 | Q14: 1 | R14: 414659754 | S14: 2098 | U14: stChoosen | V14: Журналистика | W14: =MATCH(D14,Отчет!$D:$D,0) -> 15
A15: 565790757 | B15: 10 | C15: 445ж | D15: 475519046 | E15: Латынин | F15: Антон | G15: Валерьевич | H15: 1114166 | I15: Государственная информационная политика | J15: 3 | K15: Экзамен | L15: 2014/2015 учебный год 3 модуль | N15: 30 | O15: 3 | P15: 1 | Q15: 1 | R15: 414659754 | S15: 2098 | U15: stChoosen | V15: Журналистика | W15: =MATCH(D15,Отчет!$D:$D,0) -> 54
A16: 565790765 | B16: 9 | C16: 446ж | D16: 475520112 | E16: Козырев | F16: Макар | G16: Денисович | H16: 1104114 | I16: Государственная информационная политика | J16: 3 | K16: Экзамен | L16: 2014/2015 учебный год 3 модуль | N16: 27 | O16: 3 | P16: 1 | Q16: 1 | R16: 414659754 | S16: 2098 | U16: stChoosen | V16: Журналистика | W16: =MATCH(D16,Отчет!$D:$D,0) -> 36
A17: 565790777 | B17: 8 | C17: 446ж | D17: 475522503 | E17: Шанталова | F17: Александра | G17: Спартаковна | H17: 1104142 | I17: Государственная информационная политика | J17: 3 | K17: Экзамен | L17: 2014/2015 учебный год 3 модуль | N17: 24 | O17: 3 | P17: 1 | Q17: 1 | R17: 414659754 | S17: 2098 | U17: stChoosen | V17: Журналистика | W17: =MATCH(D17,Отчет!$D:$D,0) -> 69
A18: 720412090 | B18: 8 | C18: 446ж | D18: 481541627 | E18: Мозжерова | F18: Анна | G18: Сергеевна | H18: 1114172 | I18: Государственная информационная политика | J18: 3 | K18: Экзамен | L18: 2014/2015 учебный год 3 модуль | N18: 24 | O18: 3 | P18: 1 | Q18: 0 | R18: 414659754 | S18: 2098 | U18: stChoosen | V18: Журналистика | W18: =MATCH(D18,Отчет!$D:$D,0) -> 52
A19: 974757126 | B19: 4 | C19: 446ж | D19: 972492801 | E19: Белодедова | F19: Маргарита | G19: Геннадьевна | H19: 2804108 | I19: Деловая журналистика | J19: 5.5 | K19: Экзамен | L19: 2014/2015 учебный год 3 модуль | N19: 22 | O19: 5.5 | P19: 1 | Q19: 0 | R19: 414659754 | S19: 2098 | T19: ikPassed | U19: stCommon | V19: Журналистика | W19: =MATCH(D19,Отчет!$D:$D,0) -> 80
A20: 508262038 | B20: 9 | C20: 446ж | D20: 475522118 | E20: Понтус | F20: Юлия | G20: Игоревна | H20: 1104131 | I20: Деловая журналистика | J20: 9 | K20: Экзамен | L20: 2014/2015 учебный год 3 модуль | N20: 81 | O20: 9 | P20: 1 | Q20: 1 | R20: 414659754 | S20: 2098 | U20: stCommon | V20: Журналистика | W20: =MATCH(D20,Отчет!$D:$D,0) -> 41
A21: 508262145 | B21: 6 | C21: 446ж | D21: 475522503 | E21: Шанталова | F21: Александра | G21: Спартаковна | H21: 1104142 | I21: Деловая журналистика | J21: 9 | K21: Экзамен | L21: 2014/2015 учебный год 3 модуль | N21: 54 | O21: 9 | P21: 1 | Q21: 1 | R21: 414659754 | S21: 2098 | U21: stCommon | V21: Журналистика | W21: =MATCH(D21,Отчет!$D:$D,0) -> 69
A22: 508263559 | B22: 9 | C22: 447ж | D22: 475522967 | E22: Агрызкова | F22: Юлия | G22: Игоревна | H22: 1104101 | I22: Деловая журналистика | J22: 9 | K22: Экзамен | L22: 2014/2015 учебный год 3 модуль | N22: 81 | O22: 9 | P22: 1 | Q22: 1 | R22: 414659754 | S22: 2098 | U22: stCommon | V22: Журналистика | W22: =MATCH(D22,Отчет!$D:$D,0) -> 14
A23: 508267705 | B23: 7 | C23: 447ж | D23: 475523457 | E23: Акумова | F23: Анна | G23: Дмитриевна | H23: 1104102 | I23: Деловая журналистика | J23: 9 | K23: Экзамен | L23: 2014/2015 учебный год 3 модуль | N23: 63 | O23: 9 | P23: 1 | Q23: 1 | R23: 414659754 | S23: 2098 | U23: stCommon | V23: Журналистика | W23: =MATCH(D23,Отчет!$D:$D,0) -> 32
A24: 508263778 | B24: 7 | C24: 447ж | D24: 475523923 | E24: Асангулова | F24: Рахат | G24: Талантбековна | H24: 1114192 | I24: Деловая журналистика | J24: 9 | K24: Экзамен | L24: 2014/2015 учебный год 3 модуль | N24: 63 | O24: 9 | P24: 1 | Q24: 1 | R24: 414659754 | S24: 2098 | U24: stCommon | V24: Журналистика | W24: =MATCH(D24,Отчет!$D:$D,0) -> 56
A25: 508266906 | B25: 4 | C25: 447ж | D25: 481549226 | E25: Милушкова | F25: Полина | G25: Юрьевна | H25: 1114170 | I25: Деловая журналистика | J25: 9 | K25: Экзамен | L25: 2014/2015 учебный год 3 модуль | N25: 36 | O25: 9 | P25: 1 | Q25: 0 | R25: 414659754 | S25: 2098 | U25: stCommon | V25: Журналистика | W25: =MATCH(D25,Отчет!$D:$D,0) -> 68
A26: 508267089 | B26: 9 | C26: 447ж | D26: 481549768 | E26: Мирошкина | F26: Дарья | G26: Александровна | H26: 1114171 | I26: Деловая журналистика | J26: 9 | K26: Экзамен | L26: 2014/2015 учебный год 3 модуль | N26: 81 | O26: 9 | P26: 1 | Q26: 0 | R26: 414659754 | S26: 2098 | U26: stCommon | V26: Журналистика | W26: =MATCH(D26,Отчет!$D:$D,0) -> 53
A27: 508267218 | B27: 10 | C27: 447ж | D27: 481550428 | E27: Самарина | F27: Евгения | G27: Олеговна | H27: 1114180 | I27: Деловая журналистика | J27: 9 | K27: Экзамен | L27: 2014/2015 учебный год 3 модуль | N27: 90 | O27: 9 | P27: 1 | Q27: 0 | R27: 414659754 | S27: 2098 | U27: stCommon | V27: Журналистика | W27: =MATCH(D27,Отчет!$D:$D,0) -> 33
A28: 508264950 | B28: 9 | C28: 447ж | D28: 475529718 | E28: Фалькон | F28: Анастасия | G28: Александровна | H28: 1104139 | I28: Деловая журналистика | J28: 9 | K28: Экзамен | L28: 2014/2015 учебный год 3 модуль | N28: 81 | O28: 9 | P28: 1 | Q28: 1 | R28: 414659754 | S28: 2098 | U28: stCommon | V28: Журналистика | W28: =MATCH(D28,Отчет!$D:$D,0) -> 21
A29: 508262501 | B29: 6 | C29: 446ж | D29: 481541119 | E29: Мальцева | F29: Елизавета | G29: Олеговна | H29: 1114168 | I29: Деловая журналистика | J29: 9 | K29: Экзамен | L29: 2014/2015 учебный год 3 модуль | N29: 54 | O29: 9 | P29: 1 | Q29: 0 | R29: 414659754 | S29: 2098 | U29: stCommon | V29: Журналистика | W29: =MATCH(D29,Отчет!$D:$D,0) -> 58
A30: 508262686 | B30: 7 | C30: 446ж | D30: 481541627 | E30: Мозжерова | F30: Анна | G30: Сергеевна | H30: 1114172 | I30: Деловая журналистика | J30: 9 | K30: Экзамен | L30: 2014/2015 учебный год 3 модуль | N30: 63 | O30: 9 | P30: 1 | Q30: 0 | R30: 414659754 | S30: 2098 | U30: stCommon | V30: Журналистика | W30: =MATCH(D30,Отчет!$D:$D,0) -> 52
A31: 508262813 | B31: 7 | C31: 446ж | D31: 481542172 | E31: Николаева | F31: Ирина | G31: Александровна | H31: 10151075 | I31: Деловая журналистика | J31: 9 | K31: Экзамен | L31: 2014/2015 учебный год 3 модуль | N31: 63 | O31: 9 | P31: 1 | Q31: 0 | R31: 414659754 | S31: 2098 | T31: ikPlanned | U31: stCommon | V31: Журналистика | W31: =MATCH(D31,Отчет!$D:$D,0) -> 67
A32: 508262917 | B32: 8 | C32: 446ж | D32: 481542689 | E32: Реутова | F32: Полина | G32: Сергеевна | H32: 1114175 | I32: Деловая журналистика | J32: 9 | K32: Экзамен | L32: 2014/2015 учебный год 3 модуль | N32: 72 | O32: 9 | P32: 1 | Q32: 0 | R32: 414659754 | S32: 2098 | U32: stCommon | V32: Журналистика | W32: =MATCH(D32,Отчет!$D:$D,0) -> 44
A33: 508263017 | B33: 9 | C33: 446ж | D33: 481543173 | E33: Романова | F33: Юлия | G33: Владимировна | H33: 1114176 | I33: Деловая журналистика | J33: 9 | K33: Экзамен | L33: 2014/2015 учебный год 3 модуль | N33: 81 | O33: 9 | P33: 1 | Q33: 0 | R33: 414659754 | S33: 2098 | U33: stCommon | V33: Журналистика | W33: =MATCH(D33,Отчет!$D:$D,0) -> 23
A34: 508263127 | B34: 8 | C34: 446ж | D34: 481543686 | E34: Ткачук | F34: Анфиса | G34: Сергеевна | H34: 1114185 | I34: Деловая журналистика | J34: 9 | K34: Экзамен | L34: 2014/2015 учебный год 3 модуль | N34: 72 | O34: 9 | P34: 1 | Q34: 1 | R34: 414659754 | S34: 2098 | U34: stCommon | V34: Журналистика | W34: =MATCH(D34,Отчет!$D:$D,0) -> 19
A35: 508263232 | B35: 9 | C35: 446ж | D35: 481544213 | E35: Федотова | F35: Елена | G35: Андреевна | H35: 1114186 | I35: Деловая журналистика | J35: 9 | K35: Экзамен | L35: 2014/2015 учебный год 3 модуль | N35: 81 | O35: 9 | P35: 1 | Q35: 0 | R35: 414659754 | S35: 2098 | U35: stCommon | V35: Журналистика | W35: =MATCH(D35,Отчет!$D:$D,0) -> 28
A36: 508265571 | B36: 8 | C36: 447ж | D36: 481545222 | E36: Асекритова | F36: Екатерина | G36: Александровна | H36: 1114145 | I36: Деловая журналистика | J36: 9 | K36: Экзамен | L36: 2014/2015 учебный год 3 модуль | N36: 72 | O36: 9 | P36: 1 | Q36: 0 | R36: 414659754 | S36: 2098 | U36: stCommon | V36: Журналистика | W36: =MATCH(D36,Отчет!$D:$D,0) -> 48
A37: 508265803 | B37: 9 | C37: 447ж | D37: 481545758 | E37: Бабаянц | F37: Виолетта | G37: Владимировна | H37: 1114146 | I37: Деловая журналистика | J37: 9 | K37: Экзамен | L37: 2014/2015 учебный год 3 модуль | N37: 81 | O37: 9 | P37: 1 | Q37: 0 | R37: 414659754 | S37: 2098 | U37: stCommon | V37: Журналистика | W37: =MATCH(D37,Отчет!$D:$D,0) -> 18
A38: 508266029 | B38: 10 | C38: 447ж | D38: 481546380 | E38: Василиади | F38: Елена | G38: Христоевна | H38: 1004107 | I38: Деловая журналистика | J38: 9 | K38: Экзамен | L38: 2014/2015 учебный год 3 модуль | N38: 90 | O38: 9 | P38: 1 | Q38: 0 | R38: 414659754 | S38: 2098 | U38: stCommon | V38: Журналистика | W38: =MATCH(D38,Отчет!$D:$D,0) -> 22
A39: 508266275 | B39: 9 | C39: 447ж | D39: 481546960 | E39: Вергазова | F39: Анна | G39: Тимуровна | H39: 1114149 | I39: Деловая журналистика | J39: 9 | K39: Экзамен | L39: 2014/2015 учебный год 3 модуль | N39: 81 | O39: 9 | P39: 1 | Q39: 0 | R39: 414659754 | S39: 2098 | U39: stCommon | V39: Журналистика | W39: =MATCH(D39,Отчет!$D:$D,0) -> 35
A40: 508266503 | B40: 6 | C40: 447ж | D40: 481548074 | E40: Игнатчук | F40: Ольга | G40: Ивановна | H40: 1114160 | I40: Деловая журналистика | J40: 9 | K40: Экзамен | L40: 2014/2015 учебный год 3 модуль | N40: 54 | O40: 9 | P40: 1 | Q40: 0 | R40: 414659754 | S40: 2098 | U40: stCommon | V40: Журналистика | W40: =MATCH(D40,Отчет!$D:$D,0) -> 73
A41: 508266701 | B41: 9 | C41: 447ж | D41: 481548650 | E41: Кардаш | F41: Матвей | G41: Борисович | H41: 1114163 | I41: Деловая журналистика | J41: 9 | K41: Экзамен | L41: 2014/2015 учебный год 3 модуль | N41: 81 | O41: 9 | P41: 1 | Q41: 0 | R41: 414659754 | S41: 2098 | U41: stCommon | V41: Журналистика | W41: =MATCH(D41,Отчет!$D:$D,0) -> 29
A42: 508267563 | B42: 7 | C42: 447ж | D42: 475584015 | E42: Соловьева | F42: Маргарита | G42: Владимировна | H42: 1104135 | I42: Деловая журналистика | J42: 9 | K42: Экзамен | L42: 2014/2015 учебный год 3 модуль | N42: 63 | O42: 9 | P42: 1 | Q42: 1 | R42: 414659754 | S42: 2098 | U42: stCommon | V42: Журналистика | W42: =MATCH(D42,Отчет!$D:$D,0) -> 55
A43: 508263668 | B43: 7 | C43: 447ж | D43: 475584653 | E43: Трубицына | F43: Александра | G43: Викторовна | H43: 1104137 | I43: Деловая журналистика | J43: 9 | K43: Экзамен | L43: 2014/2015 учебный год 3 модуль | N43: 63 | O43: 9 | P43: 1 | Q43: 0 | R43: 414659754 | S43: 2098 | T43: ikPlanned | U43: stCommon | V43: Журналистика | W43: =MATCH(D43,Отчет!$D:$D,0) -> 72
A44: 508259399 | B44: 8 | C44: 445ж | D44: 481532512 | E44: Гудова | F44: Юлия | G44: Викторовна | H44: 11102454 | I44: Деловая журналистика | J44: 9 | K44: Экзамен | L44: 2014/2015 учебный год 3 модуль | N44: 72 | O44: 9 | P44: 1 | Q44: 0 | R44: 414659754 | S44: 2098 | U44: stCommon | V44: Журналистика | W44: =MATCH(D44,Отчет!$D:$D,0) -> 64
A45: 508259507 | B45: 8 | C45: 445ж | D45: 481532910 | E45: Данилова | F45: Анастасия | G45: Андреевна | H45: 1104107 | I45: Деловая журналистика | J45: 9 | K45: Экзамен | L45: 2014/2015 учебный год 3 модуль | N45: 72 | O45: 9 | P45: 1 | Q45: 0 | R45: 414659754 | S45: 2098 | U45: stCommon | V45: Журналистика | W45: =MATCH(D45,Отчет!$D:$D,0) -> 26
A46: 508259612 | B46: 7 | C46: 445ж | D46: 481533400 | E46: Егорова | F46: Анна | G46: Андреевна | H46: 1114157 | I46: Деловая журналистика | J46: 9 | K46: Экзамен | L46: 2014/2015 учебный год 3 модуль | N46: 63 | O46: 9 | P46: 1 | Q46: 0 | R46: 414659754 | S46: 2098 | U46: stCommon | V46: Журналистика | W46: =MATCH(D46,Отчет!$D:$D,0) -> 59
A47: 508259706 | B47: 6 | C47: 445ж | D47: 481533939 | E47: Заикина | F47: Полина | G47: Никитична | H47: 1114159 | I47: Деловая журналистика | J47: 9 | K47: Экзамен | L47: 2014/2015 учебный год 3 модуль | N47: 54 | O47: 9 | P47: 1 | Q47: 0 | R47: 414659754 | S47: 2098 | U47: stCommon | V47: Журналистика | W47: =MATCH(D47,Отчет!$D:$D,0) -> 74
A48: 508259806 | B48: 7 | C48: 445ж | D48: 481534499 | E48: Калачина | F48: Анна | G48: Андреевна | H48: 1114162 | I48: Деловая журналистика | J48: 9 | K48: Экзамен | L48: 2014/2015 учебный год 3 модуль | N48: 63 | O48: 9 | P48: 1 | Q48: 0 | R48: 414659754 | S48: 2098 | U48: stCommon | V48: Журналистика | W48: =MATCH(D48,Отчет!$D:$D,0) -> 46
A49: 508259942 | B49: 7 | C49: 445ж | D49: 481534976 | E49: Лукьянов | F49: Алексей | G49: Константинович | H49: 1114167 | I49: Деловая журналистика | J49: 9 | K49: Экзамен | L49: 2014/2015 учебный год 3 модуль | N49: 63 | O49: 9 | P49: 1 | Q49: 0 | R49: 414659754 | S49: 2098 | U49: stCommon | V49: Журналистика | W49: =MATCH(D49,Отчет!$D:$D,0) -> 60
A50: 508260080 | B50: 7 | C50: 445ж | D50: 481535470 | E50: Рыженкова | F50: Майя | G50: Ильинична | H50: 1104133 | I50: Деловая журналистика | J50: 9 | K50: Экзамен | L50: 2014/2015 учебный год 3 модуль | N50: 63 | O50: 9 | P50: 1 | Q50: 0 | R50: 414659754 | S50: 2098 | U50: stCommon | V50: Журналистика | W50: =MATCH(D50,Отчет!$D:$D,0) -> 71
A51: 508260187 | B51: 7 | C51: 445ж | D51: 481536005 | E51: Сарвина | F51: Наталья | G51: Александровна | H51: 1114181 | I51: Деловая журналистика | J51: 9 | K51: Экзамен | L51: 2014/2015 учебный год 3 модуль | N51: 63 | O51: 9 | P51: 1 | Q51: 0 | R51: 414659754 | S51: 2098 | U51: stCommon | V51: Журналистика | W51: =MATCH(D51,Отчет!$D:$D,0) -> 51
A52: 508260282 | B52: 6 | C52: 445ж | D52: 481536522 | E52: Старкова | F52: Ольга | G52: Андреевна | H52: 1114184 | I52: Деловая журналистика | J52: 9 | K52: Экзамен | L52: 2014/2015 учебный год 3 модуль | N52: 54 | O52: 9 | P52: 1 | Q52: 0 | R52: 414659754 | S52: 2098 | U52: stCommon | V52: Журналистика | W52: =MATCH(D52,Отчет!$D:$D,0) -> 49
A53: 508262277 | B53: 8 | C53: 446ж | D53: 481539788 | E53: Гербер | F53: Александр | G53: Романович | H53: 1114152 | I53: Деловая журналистика | J53: 9 | K53: Экзамен | L53: 2014/2015 учебный год 3 модуль | N53: 72 | O53: 9 | P53: 1 | Q53: 0 | R53: 414659754 | S53: 2098 | U53: stCommon | V53: Журналистика | W53: =MATCH(D53,Отчет!$D:$D,0) -> 47
A54: 508262380 | B54: 6 | C54: 446ж | D54: 481540398 | E54: Кириллов | F54: Евгений | G54: Александрович | H54: 1114164 | I54: Деловая журналистика | J54: 9 | K54: Экзамен | L54: 2014/2015 учебный год 3 модуль | N54: 54 | O54: 9 | P54: 1 | Q54: 0 | R54: 414659754 | S54: 2098 | U54: stCommon | V54: Журналистика | W54: =MATCH(D54,Отчет!$D:$D,0) -> 78
A55: 508265331 | B55: 8 | C55: 447ж | D55: 475531344 | E55: Юхим | F55: Оксана | G55: Михайловна | H55: 1104143 | I55: Деловая журналистика | J55: 9 | K55: Экзамен | L55: 2014/2015 учебный год 3 модуль | N55: 72 | O55: 9 | P55: 1 | Q55: 1 | R55: 414659754 | S55: 2098 | U55: stCommon | V55: Журналистика | W55: =MATCH(D55,Отчет!$D:$D,0) -> 50
A56: 508258827 | B56: 5 | C56: 445ж | D56: 475517232 | E56: Васильева | F56: Маргарита | G56: Николаевна | H56: 1114147 | I56: Деловая журналистика | J56: 9 | K56: Экзамен | L56: 2014/2015 учебный год 3 модуль | N56: 45 | O56: 9 | P56: 1 | Q56: 1 | R56: 414659754 | S56: 2098 | U56: stCommon | V56: Журналистика | W56: =MATCH(D56,Отчет!$D:$D,0) -> 42
A57: 508260674 | B57: 10 | C57: 445ж | D57: 475517709 | E57: Гликин | F57: Константин | G57: Максимович | H57: 1114153 | I57: Деловая журналистика | J57: 9 | K57: Экзамен | L57: 2014/2015 учебный год 3 модуль | N57: 90 | O57: 9 | P57: 1 | Q57: 1 | R57: 414659754 | S57: 2098 | U57: stCommon | V57: Журналистика | W57: =MATCH(D57,Отчет!$D:$D,0) -> 13
A58: 508259018 | B58: 7 | C58: 445ж | D58: 475518127 | E58: Дюкарева | F58: Мария | G58: Юрьевна | H58: 1104109 | I58: Деловая журналистика | J58: 9 | K58: Экзамен | L58: 2014/2015 учебный год 3 модуль | N58: 63 | O58: 9 | P58: 1 | Q58: 1 | R58: 414659754 | S58: 2098 | U58: stCommon | V58: Журналистика | W58: =MATCH(D58,Отчет!$D:$D,0) -> 43
A59: 508260374 | B59: 6 | C59: 445ж | D59: 475578675 | E59: Голиков | F59: Александр | G59: Вячеславович | H59: 1114154 | I59: Деловая журналистика | J59: 9 | K59: Экзамен | L59: 2014/2015 учебный год 3 модуль | N59: 54 | O59: 9 | P59: 1 | Q59: 0 | R59: 414659754 | S59: 2098 | U59: stCommon | V59: Журналистика | W59: =MATCH(D59,Отчет!$D:$D,0) -> 77
A60: 508260489 | B60: 6 | C60: 445ж | D60: 475579340 | E60: Зиятдинова | F60: Раина | G60: Рамилевна | H60: 100036617 | I60: Деловая журналистика | J60: 9 | K60: Экзамен | L60: 2014/2015 учебный год 3 модуль | N60: 54 | O60: 9 | P60: 1 | Q60: 1 | R60: 414659754 | S60: 2098 | U60: stCommon | V60: Журналистика | W60: =MATCH(D60,Отчет!$D:$D,0) -> 61
A61: 508260581 | B61: 7 | C61: 445ж | D61: 475579737 | E61: Казокина | F61: Александра | G61: Сергеевна | H61: 1114161 | I61: Деловая журналистика | J61: 9 | K61: Экзамен | L61: 2014/2015 учебный год 3 модуль | N61: 63 | O61: 9 | P61: 1 | Q61: 0 | R61: 414659754 | S61: 2098 | T61: ikPlanned | U61: stCommon | V61: Журналистика | W61: =MATCH(D61,Отчет!$D:$D,0) -> 75
A62: 508258922 | B62: 4 | C62: 445ж | D62: 475580447 | E62: Кречетова | F62: Ангелина | G62: Олеговна | H62: 1114191 | I62: Деловая журналистика | J62: 9 | K62: Экзамен | L62: 2014/2015 учебный год 3 модуль | N62: 36 | O62: 9 | P62: 1 | Q62: 0 | R62: 414659754 | S62: 2098 | U62: stCommon | V62: Журналистика | W62: =MATCH(D62,Отчет!$D:$D,0) -> 76
A63: 508263347 | B63: 9 | C63: 446ж | D63: 475581231 | E63: Пожидаева | F63: Ирина | G63: Владимировна | H63: 1104128 | I63: Деловая журналистика | J63: 9 | K63: Экзамен | L63: 2014/2015 учебный год 3 модуль | N63: 81 | O63: 9 | P63: 1 | Q63: 1 | R63: 414659754 | S63: 2098 | U63: stCommon | V63: Журналистика | W63: =MATCH(D63,Отчет!$D:$D,0) -> 20
A64: 508261609 | B64: 2 | C64: 446ж | D64: 475581664 | E64: Васильева | F64: Анастасия | G64: Руслановна | H64: 1114148 | I64: Деловая журналистика | J64: 9 | K64: Экзамен | L64: 2014/2015 учебный год 3 модуль | N64: 0 | O64: 9 | P64: 0 | Q64: 0 | R64: 414659754 | S64: 2098 | U64: stCommon | V64: Журналистика | W64: =MATCH(D64,Отчет!$D:$D,0) -> 79
A65: 508267319 | B65: 6 | C65: 447ж | D65: 475582475 | E65: Андреева | F65: Мария | G65: Дмитриевна | H65: 1114144 | I65: Деловая журналистика | J65: 9 | K65: Экзамен | L65: 2014/2015 учебный год 3 модуль | N65: 54 | O65: 9 | P65: 1 | Q65: 0 | R65: 414659754 | S65: 2098 | T65: ikPlanned | U65: stCommon | V65: Журналистика | W65: =MATCH(D65,Отчет!$D:$D,0) -> 65
A66: 508267455 | B66: 8 | C66: 447ж | D66: 475583224 | E66: Мухаметдинова | F66: Элина | G66: Шамилевна | H66: 1104123 | I66: Деловая журналистика | J66: 9 | K66: Экзамен | L66: 2014/2015 учебный год 3 модуль | N66: 72 | O66: 9 | P66: 1 | Q66: 1 | R66: 414659754 | S66: 2098 | U66: stCommon | V66: Журналистика | W66: =MATCH(D66,Отчет!$D:$D,0) -> 25
A67: 508263872 | B67: 8 | C67: 447ж | D67: 475524374 | E67: Бочарова | F67: Анастасия | G67: Денисовна | H67: 1104103 | I67: Деловая журналистика | J67: 9 | K67: Экзамен | L67: 2014/2015 учебный год 3 модуль | N67: 72 | O67: 9 | P67: 1 | Q67: 1 | R67: 414659754 | S67: 2098 | U67: stCommon | V67: Журналистика | W67: =MATCH(D67,Отчет!$D:$D,0) -> 38
A68: 508263966 | B68: 8 | C68: 447ж | D68: 475524972 | E68: Гернеза | F68: Варвара | G68: Андреевна | H68: 1104104 | I68: Деловая журналистика | J68: 9 | K68: Экзамен | L68: 2014/2015 учебный год 3 модуль | N68: 72 | O68: 9 | P68: 1 | Q68: 1 | R68: 414659754 | S68: 2098 | U68: stCommon | V68: Журналистика | W68: =MATCH(D68,Отчет!$D:$D,0) -> 62
A69: 508264068 | B69: 9 | C69: 447ж | D69: 475525818 | E69: Донцова | F69: Анна | G69: Юрьевна | H69: 1104108 | I69: Деловая журналистика | J69: 9 | K69: Экзамен | L69: 2014/2015 учебный год 3 модуль | N69: 81 | O69: 9 | P69: 1 | Q69: 1 | R69: 414659754 | S69: 2098 | U69: stCommon | V69: Журналистика | W69: =MATCH(D69,Отчет!$D:$D,0) -> 31
A70: 508264165 | B70: 10 | C70: 447ж | D70: 475526257 | E70: Сорокина | F70: Мария | G70: Михайловна | H70: 1104110 | I70: Деловая журналистика | J70: 9 | K70: Экзамен | L70: 2014/2015 учебный год 3 модуль | N70: 90 | O70: 9 | P70: 1 | Q70: 1 | R70: 414659754 | S70: 2098 | U70: stCommon | V70: Журналистика | W70: =MATCH(D70,Отчет!$D:$D,0) -> 16
A71: 508264272 | B71: 7 | C71: 447ж | D71: 475526751 | E71: Ихно | F71: Дарья | G71: Сергеевна | H71: 1104113 | I71: Деловая журналистика | J71: 9 | K71: Экзамен | L71: 2014/2015 учебный год 3 модуль | N71: 63 | O71: 9 | P71: 1 | Q71: 1 | R71: 414659754 | S71: 2098 | U71: stCommon | V71: Журналистика | W71: =MATCH(D71,Отчет!$D:$D,0) -> 34
A72: 508264370 | B72: 9 | C72: 447ж | D72: 475527155 | E72: Кристалинская | F72: Мария | G72: Валерьевна | H72: 1104115 | I72: Деловая журналистика | J72: 9 | K72: Экзамен | L72: 2014/2015 учебный год 3 модуль | N72: 81 | O72: 9 | P72: 1 | Q72: 1 | R72: 414659754 | S72: 2098 | U72: stCommon | V72: Журналистика | W72: =MATCH(D72,Отчет!$D:$D,0) -> 17
A73: 508264467 | B73: 8 | C73: 447ж | D73: 475527601 | E73: Кудряшова | F73: Юлия | G73: Ивановна | H73: 1104116 | I73: Деловая журналистика | J73: 9 | K73: Экзамен | L73: 2014/2015 учебный год 3 модуль | N73: 72 | O73: 9 | P73: 1 | Q73: 1 | R73: 414659754 | S73: 2098 | U73: stCommon | V73: Журналистика | W73: =MATCH(D73,Отчет!$D:$D,0) -> 40
A74: 508264565 | B74: 9 | C74: 447ж | D74: 475528055 | E74: Львова | F74: Анастасия | G74: Артуровна | H74: 1104120 | I74: Деловая журналистика | J74: 9 | K74: Экзамен | L74: 2014/2015 учебный год 3 модуль | N74: 81 | O74: 9 | P74: 1 | Q74: 1 | R74: 414659754 | S74: 2098 | U74: stCommon | V74: Журналистика | W74: =MATCH(D74,Отчет!$D:$D,0) -> 24
A75: 508264667 | B75: 8 | C75: 447ж | D75: 475528458 | E75: Максимов | F75: Егор | G75: Игоревич | H75: 1104121 | I75: Деловая журналистика | J75: 9 | K75: Экзамен | L75: 2014/2015 учебный год 3 модуль | N75: 72 | O75: 9 | P75: 1 | Q75: 1 | R75: 414659754 | S75: 2098 | U75: stCommon | V75: Журналистика | W75: =MATCH(D75,Отчет!$D:$D,0) -> 63
A76: 508264764 | B76: 10 | C76: 447ж | D76: 475528836 | E76: Павленко | F76: Валентина | G76: Юрьевна | H76: 1104126 | I76: Деловая журналистика | J76: 9 | K76: Экзамен | L76: 2014/2015 учебный год 3 модуль | N76: 90 | O76: 9 | P76: 1 | Q76: 1 | R76: 414659754 | S76: 2098 | U76: stCommon | V76: Журналистика | W76: =MATCH(D76,Отчет!$D:$D,0) -> 12
A77: 508264856 | B77: 10 | C77: 447ж | D77: 475529260 | E77: Разумовская | F77: Мария | G77: Алексеевна | H77: 1104132 | I77: Деловая журналистика | J77: 9 | K77: Экзамен | L77: 2014/2015 учебный год 3 модуль | N77: 90 | O77: 9 | P77: 1 | Q77: 1 | R77: 414659754 | S77: 2098 | U77: stCommon | V77: Журналистика | W77: =MATCH(D77,Отчет!$D:$D,0) -> 15
A78: 508265045 | B78: 5 | C78: 447ж | D78: 475530257 | E78: Хачатрян | F78: Ангелина | G78: Владиславовна | H78: 1104140 | I78: Деловая журналистика | J78: 9 | K78: Экзамен | L78: 2014/2015 учебный год 3 модуль | N78: 45 | O78: 9 | P78: 1 | Q78: 1 | R78: 414659754 | S78: 2098 | U78: stCommon | V78: Журналистика | W78: =MATCH(D78,Отчет!$D:$D,0) -> 70
A79: 508265144 | B79: 7 | C79: 447ж | D79: 475530733 | E79: Чумакова | F79: Инга | G79: Константиновна | H79: 1104141 | I79: Деловая журналистика | J79: 9 | K79: Экзамен | L79: 2014/2015 учебный год 3 модуль | N79: 63 | O79: 9 | P79: 1 | Q79: 1 | R79: 414659754 | S79: 2098 | U79: stCommon | V79: Журналистика | W79: =MATCH(D79,Отчет!$D:$D,0) -> 37
A80: 508259121 | B80: 10 | C80: 445ж | D80: 475518599 | E80: Зайцева | F80: Екатерина | G80: Николаевна | H80: 1104111 | I80: Деловая журналистика | J80: 9 | K80: Экзамен | L80: 2014/2015 учебный год 3 модуль | N80: 90 | O80: 9 | P80: 1 | Q80: 1 | R80: 414659754 | S80: 2098 | U80: stCommon | V80: Журналистика | W80: =MATCH(D80,Отчет!$D:$D,0) -> 57
A81: 508259213 | B81: 7 | C81: 445ж | D81: 475519046 | E81: Латынин | F81: Антон | G81: Валерьевич | H81: 1114166 | I81: Деловая журналистика | J81: 9 | K81: Экзамен | L81: 2014/2015 учебный год 3 модуль | N81: 63 | O81: 9 | P81: 1 | Q81: 1 | R81: 414659754 | S81: 2098 | U81: stCommon | V81: Журналистика | W81: =MATCH(D81,Отчет!$D:$D,0) -> 54
A82: 508259307 | B82: 8 | C82: 445ж | D82: 475519583 | E82: Рыхлик | F82: Наталья | G82: Николаевна | H82: 1104134 | I82: Деловая журналистика | J82: 9 | K82: Экзамен | L82: 2014/2015 учебный год 3 модуль | N82: 72 | O82: 9 | P82: 1 | Q82: 1 | R82: 414659754 | S82: 2098 | U82: stCommon | V82: Журналистика | W82: =MATCH(D82,Отчет!$D:$D,0) -> 30
A83: 508261515 | B83: 7 | C83: 446ж | D83: 475520112 | E83: Козырев | F83: Макар | G83: Денисович | H83: 1104114 | I83: Деловая журналистика | J83: 9 | K83: Экзамен | L83: 2014/2015 учебный год 3 модуль | N83: 63 | O83: 9 | P83: 1 | Q83: 1 | R83: 414659754 | S83: 2098 | U83: stCommon | V83: Журналистика | W83: =MATCH(D83,Отчет!$D:$D,0) -> 36
A84: 508263439 | B84: 7 | C84: 446ж | D84: 475520518 | E84: Нагдалиева | F84: Злата | G84: Фархадовна | H84: 1104124 | I84: Деловая журналистика | J84: 9 | K84: Экзамен | L84: 2014/2015 учебный год 3 модуль | N84: 63 | O84: 9 | P84: 1 | Q84: 1 | R84: 414659754 | S84: 2098 | U84: stCommon | V84: Журналистика | W84: =MATCH(D84,Отчет!$D:$D,0) -> 45
A85: 508261703 | B85: 7 | C85: 446ж | D85: 475520912 | E85: Носик | F85: Виктория | G85: Павловна | H85: 1104125 | I85: Деловая журналистика | J85: 9 | K85: Экзамен | L85: 2014/2015 учебный год 3 модуль | N85: 63 | O85: 9 | P85: 1 | Q85: 1 | R85: 414659754 | S85: 2098 | U85: stCommon | V85: Журналистика | W85: =MATCH(D85,Отчет!$D:$D,0) -> 66
A86: 508261798 | B86: 8 | C86: 446ж | D86: 475521309 | E86: Пенкина | F86: Анастасия | G86: Валерьевна | H86: 1104127 | I86: Деловая журналистика | J86: 9 | K86: Экзамен | L86: 2014/2015 учебный год 3 модуль | N86: 72 | O86: 9 | P86: 1 | Q86: 1 | R86: 414659754 | S86: 2098 | U86: stCommon | V86: Журналистика | W86: =MATCH(D86,Отчет!$D:$D,0) -> 27
A87: 508261894 | B87: 9 | C87: 446ж | D87: 475521694 | E87: Полибенцева | F87: Анна | G87: Владимировна | H87: 1104129 | I87: Деловая журналистика | J87: 9 | K87: Экзамен | L87: 2014/2015 учебный год 3 модуль | N87: 81 | O87: 9 | P87: 1 | Q87: 1 | R87: 414659754 | S87: 2098 | U87: stCommon | V87: Журналистика | W87: =MATCH(D87,Отчет!$D:$D,0) -> 39
A88: 508266737 | B88: 8 | C88: 447ж | D88: 481548650 | E88: Кардаш | F88: Матвей | G88: Борисович | H88: 1114163 | I88: Иностранный язык (английский) | J88: 3 | K88: Экзамен | L88: 2014/2015 учебный год 3 модуль | N88: 24 | O88: 3 | P88: 1 | Q88: 0 | R88: 414659754 | S88: 4371 | V88: Журналистика | W88: =MATCH(D88,Отчет!$D:$D,0) -> 29
A89: 508266922 | B89: 7 | C89: 447ж | D89: 481549226 | E89: Милушкова | F89: Полина | G89: Юрьевна | H89: 1114170 | I89: Иностранный язык (английский) | J89: 3 | K89: Экзамен | L89: 2014/2015 учебный год 3 модуль | N89: 21 | O89: 3 | P89: 1 | Q89: 0 | R89: 414659754 | S89: 4371 | V89: Журналистика | W89: =MATCH(D89,Отчет!$D:$D,0) -> 68
A90: 508267111 | B90: 6 | C90: 447ж | D90: 481549768 | E90: Мирошкина | F90: Дарья | G90: Александровна | H90: 1114171 | I90: Иностранный язык (английский) | J90: 3 | K90: Экзамен | L90: 2014/2015 учебный год 3 модуль | N90: 18 | O90: 3 | P90: 1 | Q90: 0 | R90: 414659754 | S90: 4371 | V90: Журналистика | W90: =MATCH(D90,Отчет!$D:$D,0) -> 53
A91: 508267234 | B91: 7 | C91: 447ж | D91: 481550428 | E91: Самарина | F91: Евгения | G91: Олеговна | H91: 1114180 | I91: Иностранный язык (английский) | J91: 3 | K91: Экзамен | L91: 2014/2015 учебный год 3 модуль | N91: 21 | O91: 3 | P91: 1 | Q91: 0 | R91: 414659754 | S91: 4371 | V91: Журналистика | W91: =MATCH(D91,Отчет!$D:$D,0) -> 33
A92: 974757237 | B92: 6 | C92: 446ж | D92: 972492801 | E92: Белодедова | F92: Маргарита | G92: Геннадьевна | H92: 2804108 | I92: Иностранный язык (английский) | J92: 3 | K92: Экзамен | L92: 2014/2015 учебный год 3 модуль | N92: 18 | O92: 3 | P92: 1 | Q92: 0 | R92: 414659754 | S92: 4371 | T92: ikPassed | V92: Журналистика | W92: =MATCH(D92,Отчет!$D:$D,0) -> 80
A93: 508264969 | B93: 10 | C93: 447ж | D93: 475529718 | E93: Фалькон | F93: Анастасия | G93: Александровна | H93: 1104139 | I93: Иностранный язык (английский) | J93: 3 | K93: Экзамен | L93: 2014/2015 учебный год 3 модуль | N93: 30 | O93: 3 | P93: 1 | Q93: 1 | R93: 414659754 | S93: 4371 | V93: Журналистика | W93: =MATCH(D93,Отчет!$D:$D,0) -> 21
A94: 508262531 | B94: 7 | C94: 446ж | D94: 481541119 | E94: Мальцева | F94: Елизавета | G94: Олеговна | H94: 1114168 | I94: Иностранный язык (английский) | J94: 3 | K94: Экзамен | L94: 2014/2015 учебный год 3 модуль | N94: 21 | O94: 3 | P94: 1 | Q94: 0 | R94: 414659754 | S94: 4371 | V94: Журналистика | W94: =MATCH(D94,Отчет!$D:$D,0) -> 58
A95: 508262706 | B95: 5 | C95: 446ж | D95: 481541627 | E95: Мозжерова | F95: Анна | G95: Сергеевна | H95: 1114172 | I95: Иностранный язык (английский) | J95: 3 | K95: Экзамен | L95: 2014/2015 учебный год 3 модуль | N95: 15 | O95: 3 | P95: 1 | Q95: 0 | R95: 414659754 | S95: 4371 | V95: Журналистика | W95: =MATCH(D95,Отчет!$D:$D,0) -> 52
A96: 508262829 | B96: 9 | C96: 446ж | D96: 481542172 | E96: Николаева | F96: Ирина | G96: Александровна | H96: 10151075 | I96: Иностранный язык (английский) | J96: 3 | K96: Экзамен | L96: 2014/2015 учебный год 3 модуль | N96: 27 | O96: 3 | P96: 1 | Q96: 0 | R96: 414659754 | S96: 4371 | T96: ikPlanned | V96: Журналистика | W96: =MATCH(D96,Отчет!$D:$D,0) -> 67
A97: 508262935 | B97: 7 | C97: 446ж | D97: 481542689 | E97: Реутова | F97: Полина | G97: Сергеевна | H97: 1114175 | I97: Иностранный язык (английский) | J97: 3 | K97: Экзамен | L97: 2014/2015 учебный год 3 модуль | N97: 21 | O97: 3 | P97: 1 | Q97: 0 | R97: 414659754 | S97: 4371 | V97: Журналистика | W97: =MATCH(D97,Отчет!$D:$D,0) -> 44
A98: 508263033 | B98: 7 | C98: 446ж | D98: 481543173 | E98: Романова | F98: Юлия | G98: Владимировна | H98: 1114176 | I98: Иностранный язык (английский) | J98: 3 | K98: Экзамен | L98: 2014/2015 учебный год 3 модуль | N98: 21 | O98: 3 | P98: 1 | Q98: 0 | R98: 414659754 | S98: 4371 | V98: Журналистика | W98: =MATCH(D98,Отчет!$D:$D,0) -> 23
A99: 508263143 | B99: 9 | C99: 446ж | D99: 481543686 | E99: Ткачук | F99: Анфиса | G99: Сергеевна | H99: 1114185 | I99: Иностранный язык (английский) | J99: 3 | K99: Экзамен | L99: 2014/2015 учебный год 3 модуль | N99: 27 | O99: 3 | P99: 1 | Q99: 1 | R99: 414659754 | S99: 4371 | V99: Журналистика | W99: =MATCH(D99,Отчет!$D:$D,0) -> 19
A100: 508263260 | B100: 9 | C100: 446ж | D100: 481544213 | E100: Федотова | F100: Елена | G100: Андреевна | H100: 1114186 | I100: Иностранный язык (английский) | J100: 3 | K100: Экзамен | L100: 2014/2015 учебный год 3 модуль | N100: 27 | O100: 3 | P100: 1 | Q100: 0 | R100: 414659754 | S100: 4371 | V100: Журналистика | W100: =MATCH(D100,Отчет!$D:$D,0) -> 28
A101: 508265607 | B101: 10 | C101: 447ж | D101: 481545222 | E101: Асекритова | F101: Екатерина | G101: Александровна | H101: 1114145 | I101: Иностранный язык (английский) | J101: 3 | K101: Экзамен | L101: 2014/2015 учебный год 3 модуль | N101: 30 | O101: 3 | P101: 1 | Q101: 0 | R101: 414659754 | S101: 4371 | V101: Журналистика | W101: =MATCH(D101,Отчет!$D:$D,0) -> 48
A102: 508265848 | B102: 7 | C102: 447ж | D102: 481545758 | E102: Бабаянц | F102: Виолетта | G102: Владимировна | H102: 1114146 | I102: Иностранный язык (английский) | J102: 3 | K102: Экзамен | L102: 2014/2015 учебный год 3 модуль | N102: 21 | O102: 3 | P102: 1 | Q102: 0 | R102: 414659754 | S102: 4371 | V102: Журналистика | W102: =MATCH(D102,Отчет!$D:$D,0) -> 18
A103: 508266065 | B103: 9 | C103: 447ж | D103: 481546380 | E103: Василиади | F103: Елена | G103: Христоевна | H103: 1004107 | I103: Иностранный язык (английский) | J103: 3 | K103: Экзамен | L103: 2014/2015 учебный год 3 модуль | N103: 27 | O103: 3 | P103: 1 | Q103: 0 | R103: 414659754 | S103: 4371 | V103: Журналистика | W103: =MATCH(D103,Отчет!$D:$D,0) -> 22
A104: 508266311 | B104: 10 | C104: 447ж | D104: 481546960 | E104: Вергазова | F104: Анна | G104: Тимуровна | H104: 1114149 | I104: Иностранный язык (английский) | J104: 3 | K104: Экзамен | L104: 2014/2015 учебный год 3 модуль | N104: 30 | O104: 3 | P104: 1 | Q104: 0 | R104: 414659754 | S104: 4371 | V104: Журналистика | W104: =MATCH(D104,Отчет!$D:$D,0) -> 35
A105: 508266537 | B105: 7 | C105: 447ж | D105: 481548074 | E105: Игнатчук | F105: Ольга | G105: Ивановна | H105: 1114160 | I105: Иностранный язык (английский) | J105: 3 | K105: Экзамен | L105: 2014/2015 учебный год 3 модуль | N105: 21 | O105: 3 | P105: 1 | Q105: 0 | R105: 414659754 | S105: 4371 | V105: Журналистика | W105: =MATCH(D105,Отчет!$D:$D,0) -> 73
A106: 508267586 | B106: 8 | C106: 447ж | D106: 475584015 | E106: Соловьева | F106: Маргарита | G106: Владимировна | H106: 1104135 | I106: Иностранный язык (английский) | J106: 3 | K106: Экзамен | L106: 2014/2015 учебный год 3 модуль | N106: 24 | O106: 3 | P106: 1 | Q106: 1 | R106: 414659754 | S106: 4371 | V106: Журналистика | W106: =MATCH(D106,Отчет!$D:$D,0) -> 55
A107: 508263688 | B107: 5 | C107: 447ж | D107: 475584653 | E107: Трубицына | F107: Александра | G107: Викторовна | H107: 1104137 | I107: Иностранный язык (английский) | J107: 3 | K107: Экзамен | L107: 2014/2015 учебный год 3 модуль | N107: 15 | O107: 3 | P107: 1 | Q107: 0 | R107: 414659754 | S107: 4371 | T107: ikPlanned | V107: Журналистика | W107: =MATCH(D107,Отчет!$D:$D,0) -> 72
A108: 508259415 | B108: 6 | C108: 445ж | D108: 481532512 | E108: Гудова | F108: Юлия | G108: Викторовна | H108: 11102454 | I108: Иностранный язык (английский) | J108: 3 | K108: Экзамен | L108: 2014/2015 учебный год 3 модуль | N108: 18 | O108: 3 | P108: 1 | Q108: 0 | R108: 414659754 | S108: 4371 | V108: Журналистика | W108: =MATCH(D108,Отчет!$D:$D,0) -> 64
A109: 508259531 | B109: 9 | C109: 445ж | D109: 481532910 | E109: Данилова | F109: Анастасия | G109: Андреевна | H109: 1104107 | I109: Иностранный язык (английский) | J109: 3 | K109: Экзамен | L109: 2014/2015 учебный год 3 модуль | N109: 27 | O109: 3 | P109: 1 | Q109: 0 | R109: 414659754 | S109: 4371 | V109: Журналистика | W109: =MATCH(D109,Отчет!$D:$D,0) -> 26
A110: 508259629 | B110: 6 | C110: 445ж | D110: 481533400 | E110: Егорова | F110: Анна | G110: Андреевна | H110: 1114157 | I110: Иностранный язык (английский) | J110: 3 | K110: Экзамен | L110: 2014/2015 учебный год 3 модуль | N110: 18 | O110: 3 | P110: 1 | Q110: 0 | R110: 414659754 | S110: 4371 | V110: Журналистика | W110: =MATCH(D110,Отчет!$D:$D,0) -> 59
A111: 508259723 | B111: 6 | C111: 445ж | D111: 481533939 | E111: Заикина | F111: Полина | G111: Никитична | H111: 1114159 | I111: Иностранный язык (английский) | J111: 3 | K111: Экзамен | L111: 2014/2015 учебный год 3 модуль | N111: 18 | O111: 3 | P111: 1 | Q111: 0 | R111: 414659754 | S111: 4371 | V111: Журналистика | W111: =MATCH(D111,Отчет!$D:$D,0) -> 74
A112: 508259822 | B112: 9 | C112: 445ж | D112: 481534499 | E112: Калачина | F112: Анна | G112: Андреевна | H112: 1114162 | I112: Иностранный язык (английский) | J112: 3 | K112: Экзамен | L112: 2014/2015 учебный год 3 модуль | N112: 27 | O112: 3 | P112: 1 | Q112: 0 | R112: 414659754 | S112: 4371 | V112: Журналистика | W112: =MATCH(D112,Отчет!$D:$D,0) -> 46
A113: 508259960 | B113: 9 | C113: 445ж | D113: 481534976 | E113: Лукьянов | F113: Алексей | G113: Константинович | H113: 1114167 | I113: Иностранный язык (английский) | J113: 3 | K113: Экзамен | L113: 2014/2015 учебный год 3 модуль | N113: 27 | O113: 3 | P113: 1 | Q113: 0 | R113: 414659754 | S113: 4371 | V113: Журналистика | W113: =MATCH(D113,Отчет!$D:$D,0) -> 60
A114: 508260096 | B114: 8 | C114: 445ж | D114: 481535470 | E114: Рыженкова | F114: Майя | G114: Ильинична | H114: 1104133 | I114: Иностранный язык (английский) | J114: 3 | K114: Экзамен | L114: 2014/2015 учебный год 3 модуль | N114: 24 | O114: 3 | P114: 1 | Q114: 0 | R114: 414659754 | S114: 4371 | V114: Журналистика | W114: =MATCH(D114,Отчет!$D:$D,0) -> 71
A115: 508260203 | B115: 5 | C115: 445ж | D115: 481536005 | E115: Сарвина | F115: Наталья | G115: Александровна | H115: 1114181 | I115: Иностранный язык (английский) | J115: 3 | K115: Экзамен | L115: 2014/2015 учебный год 3 модуль | N115: 15 | O115: 3 | P115: 1 | Q115: 0 | R115: 414659754 | S115: 4371 | V115: Журналистика | W115: =MATCH(D115,Отчет!$D:$D,0) -> 51
A116: 508260298 | B116: 9 | C116: 445ж | D116: 481536522 | E116: Старкова | F116: Ольга | G116: Андреевна | H116: 1114184 | I116: Иностранный язык (английский) | J116: 3 | K116: Экзамен | L116: 2014/2015 учебный год 3 модуль | N116: 27 | O116: 3 | P116: 1 | Q116: 0 | R116: 414659754 | S116: 4371 | V116: Журналистика | W116: =MATCH(D116,Отчет!$D:$D,0) -> 49
A117: 508262293 | B117: 8 | C117: 446ж | D117: 481539788 | E117: Гербер | F117: Александр | G117: Романович | H117: 1114152 | I117: Иностранный язык (английский) | J117: 3 | K117: Экзамен | L117: 2014/2015 учебный год 3 модуль | N117: 24 | O117: 3 | P117: 1 | Q117: 0 | R117: 414659754 | S117: 4371 | V117: Журналистика | W117: =MATCH(D117,Отчет!$D:$D,0) -> 47
A118: 508262406 | B118: 8 | C118: 446ж | D118: 481540398 | E118: Кириллов | F118: Евгений | G118: Александрович | H118: 1114164 | I118: Иностранный язык (английский) | J118: 3 | K118: Экзамен | L118: 2014/2015 учебный год 3 модуль | N118: 24 | O118: 3 | P118: 1 | Q118: 0 | R118: 414659754 | S118: 4371 | V118: Журналистика | W118: =MATCH(D118,Отчет!$D:$D,0) -> 78
A119: 508265162 | B119: 8 | C119: 447ж | D119: 475530733 | E119: Чумакова | F119: Инга | G119: Константиновна | H119: 1104141 | I119: Иностранный язык (английский) | J119: 3 | K119: Экзамен | L119: 2014/2015 учебный год 3 модуль | N119: 24 | O119: 3 | P119: 1 | Q119: 1 | R119: 414659754 | S119: 4371 | V119: Журналистика | W119: =MATCH(D119,Отчет!$D:$D,0) -> 37
A120: 508265370 | B120: 10 | C120: 447ж | D120: 475531344 | E120: Юхим | F120: Оксана | G120: Михайловна | H120: 1104143 | I120: Иностранный язык (английский) | J120: 3 | K120: Экзамен | L120: 2014/2015 учебный год 3 модуль | N120: 30 | O120: 3 | P120: 1 | Q120: 1 | R120: 414659754 | S120: 4371 | V120: Журналистика | W120: =MATCH(D120,Отчет!$D:$D,0) -> 50
A121: 508258843 | B121: 9 | C121: 445ж | D121: 475517232 | E121: Васильева | F121: Маргарита | G121: Николаевна | H121: 1114147 | I121: Иностранный язык (английский) | J121: 3 | K121: Экзамен | L121: 2014/2015 учебный год 3 модуль | N121: 27 | O121: 3 | P121: 1 | Q121: 1 | R121: 414659754 | S121: 4371 | V121: Журналистика | W121: =MATCH(D121,Отчет!$D:$D,0) -> 42
A122: 508260706 | B122: 10 | C122: 445ж | D122: 475517709 | E122: Гликин | F122: Константин | G122: Максимович | H122: 1114153 | I122: Иностранный язык (английский) | J122: 3 | K122: Экзамен | L122: 2014/2015 учебный год 3 модуль | N122: 30 | O122: 3 | P122: 1 | Q122: 1 | R122: 414659754 | S122: 4371 | V122: Журналистика | W122: =MATCH(D122,Отчет!$D:$D,0) -> 13
A123: 508259034 | B123: 9 | C123: 445ж | D123: 475518127 | E123: Дюкарева | F123: Мария | G123: Юрьевна | H123: 1104109 | I123: Иностранный язык (английский) | J123: 3 | K123: Экзамен | L123: 2014/2015 учебный год 3 модуль | N123: 27 | O123: 3 | P123: 1 | Q123: 1 | R123: 414659754 | S123: 4371 | V123: Журналистика | W123: =MATCH(D123,Отчет!$D:$D,0) -> 43
A124: 508260391 | B124: 8 | C124: 445ж | D124: 475578675 | E124: Голиков | F124: Александр | G124: Вячеславович | H124: 1114154 | I124: Иностранный язык (английский) | J124: 3 | K124: Экзамен | L124: 2014/2015 учебный год 3 модуль | N124: 24 | O124: 3 | P124: 1 | Q124: 0 | R124: 414659754 | S124: 4371 | V124: Журналистика | W124: =MATCH(D124,Отчет!$D:$D,0) -> 77
A125: 508260505 | B125: 7 | C125: 445ж | D125: 475579340 | E125: Зиятдинова | F125: Раина | G125: Рамилевна | H125: 100036617 | I125: Иностранный язык (английский) | J125: 3 | K125: Экзамен | L125: 2014/2015 учебный год 3 модуль | N125: 21 | O125: 3 | P125: 1 | Q125: 1 | R125: 414659754 | S125: 4371 | V125: Журналистика | W125: =MATCH(D125,Отчет!$D:$D,0) -> 61
A126: 508260597 | B126: 6 | C126: 445ж | D126: 475579737 | E126: Казокина | F126: Александра | G126: Сергеевна | H126: 1114161 | I126: Иностранный язык (английский) | J126: 3 | K126: Экзамен | L126: 2014/2015 учебный год 3 модуль | N126: 18 | O126: 3 | P126: 1 | Q126: 0 | R126: 414659754 | S126: 4371 | T126: ikPlanned | V126: Журналистика | W126: =MATCH(D126,Отчет!$D:$D,0) -> 75
A127: 508258938 | B127: 6 | C127: 445ж | D127: 475580447 | E127: Кречетова | F127: Ангелина | G127: Олеговна | H127: 1114191 | I127: Иностранный язык (английский) | J127: 3 | K127: Экзамен | L127: 2014/2015 учебный год 3 модуль | N127: 18 | O127: 3 | P127: 1 | Q127: 0 | R127: 414659754 | S127: 4371 | V127: Журналистика | W127: =MATCH(D127,Отчет!$D:$D,0) -> 76
A128: 508263363 | B128: 9 | C128: 446ж | D128: 475581231 | E128: Пожидаева | F128: Ирина | G128: Владимировна | H128: 1104128 | I128: Иностранный язык (английский) | J128: 3 | K128: Экзамен | L128: 2014/2015 учебный год 3 модуль | N128: 27 | O128: 3 | P128: 1 | Q128: 1 | R128: 414659754 | S128: 4371 | V128: Журналистика | W128: =MATCH(D128,Отчет!$D:$D,0) -> 20
A129: 508261625 | B129: 10 | C129: 446ж | D129: 475581664 | E129: Васильева | F129: Анастасия | G129: Руслановна | H129: 1114148 | I129: Иностранный язык (английский) | J129: 3 | K129: Экзамен | L129: 2014/2015 учебный год 3 модуль | N129: 30 | O129: 3 | P129: 1 | Q129: 0 | R129: 414659754 | S129: 4371 | V129: Журналистика | W129: =MATCH(D129,Отчет!$D:$D,0) -> 79
A130: 508267345 | B130: 6 | C130: 447ж | D130: 475582475 | E130: Андреева | F130: Мария | G130: Дмитриевна | H130: 1114144 | I130: Иностранный язык (английский) | J130: 3 | K130: Экзамен | L130: 2014/2015 учебный год 3 модуль | N130: 18 | O130: 3 | P130: 1 | Q130: 0 | R130: 414659754 | S130: 4371 | T130: ikPlanned | V130: Журналистика | W130: =MATCH(D130,Отчет!$D:$D,0) -> 65
A131: 508267474 | B131: 10 | C131: 447ж | D131: 475583224 | E131: Мухаметдинова | F131: Элина | G131: Шамилевна | H131: 1104123 | I131: Иностранный язык (английский) | J131: 3 | K131: Экзамен | L131: 2014/2015 учебный год 3 модуль | N131: 30 | O131: 3 | P131: 1 | Q131: 1 | R131: 414659754 | S131: 4371 | V131: Журналистика | W131: =MATCH(D131,Отчет!$D:$D,0) -> 25
A132: 508263794 | B132: 8 | C132: 447ж | D132: 475523923 | E132: Асангулова | F132: Рахат | G132: Талантбековна | H132: 1114192 | I132: Иностранный язык (английский) | J132: 3 | K132: Экзамен | L132: 2014/2015 учебный год 3 модуль | N132: 24 | O132: 3 | P132: 1 | Q132: 1 | R132: 414659754 | S132: 4371 | V132: Журналистика | W132: =MATCH(D132,Отчет!$D:$D,0) -> 56
A133: 508263888 | B133: 7 | C133: 447ж | D133: 475524374 | E133: Бочарова | F133: Анастасия | G133: Денисовна | H133: 1104103 | I133: Иностранный язык (английский) | J133: 3 | K133: Экзамен | L133: 2014/2015 учебный год 3 модуль | N133: 21 | O133: 3 | P133: 1 | Q133: 1 | R133: 414659754 | S133: 4371 | V133: Журналистика | W133: =MATCH(D133,Отчет!$D:$D,0) -> 38
A134: 508263982 | B134: 6 | C134: 447ж | D134: 475524972 | E134: Гернеза | F134: Варвара | G134: Андреевна | H134: 1104104 | I134: Иностранный язык (английский) | J134: 3 | K134: Экзамен | L134: 2014/2015 учебный год 3 модуль | N134: 18 | O134: 3 | P134: 1 | Q134: 1 | R134: 414659754 | S134: 4371 | V134: Журналистика | W134: =MATCH(D134,Отчет!$D:$D,0) -> 62
A135: 508264084 | B135: 7 | C135: 447ж | D135: 475525818 | E135: Донцова | F135: Анна | G135: Юрьевна | H135: 1104108 | I135: Иностранный язык (английский) | J135: 3 | K135: Экзамен | L135: 2014/2015 учебный год 3 модуль | N135: 21 | O135: 3 | P135: 1 | Q135: 1 | R135: 414659754 | S135: 4371 | V135: Журналистика | W135: =MATCH(D135,Отчет!$D:$D,0) -> 31
A136: 508264183 | B136: 8 | C136: 447ж | D136: 475526257 | E136: Сорокина | F136: Мария | G136: Михайловна | H136: 1104110 | I136: Иностранный язык (английский) | J136: 3 | K136: Экзамен | L136: 2014/2015 учебный год 3 модуль | N136: 24 | O136: 3 | P136: 1 | Q136: 1 | R136: 414659754 | S136: 4371 | V136: Журналистика | W136: =MATCH(D136,Отчет!$D:$D,0) -> 16
A137: 508264288 | B137: 8 | C137: 447ж | D137: 475526751 | E137: Ихно | F137: Дарья | G137: Сергеевна | H137: 1104113 | I137: Иностранный язык (английский) | J137: 3 | K137: Экзамен | L137: 2014/2015 учебный год 3 модуль | N137: 24 | O137: 3 | P137: 1 | Q137: 1 | R137: 414659754 | S137: 4371 | V137: Журналистика | W137: =MATCH(D137,Отчет!$D:$D,0) -> 34
A138: 508264388 | B138: 9 | C138: 447ж | D138: 475527155 | E138: Кристалинская | F138: Мария | G138: Валерьевна | H138: 1104115 | I138: Иностранный язык (английский) | J138: 3 | K138: Экзамен | L138: 2014/2015 учебный год 3 модуль | N138: 27 | O138: 3 | P138: 1 | Q138: 1 | R138: 414659754 | S138: 4371 | V138: Журналистика | W138: =MATCH(D138,Отчет!$D:$D,0) -> 17
A139: 508264483 | B139: 7 | C139: 447ж | D139: 475527601 | E139: Кудряшова | F139: Юлия | G139: Ивановна | H139: 1104116 | I139: Иностранный язык (английский) | J139: 3 | K139: Экзамен | L139: 2014/2015 учебный год 3 модуль | N139: 21 | O139: 3 | P139: 1 | Q139: 1 | R139: 414659754 | S139: 4371 | V139: Журналистика | W139: =MATCH(D139,Отчет!$D:$D,0) -> 40
A140: 508264581 | B140: 10 | C140: 447ж | D140: 475528055 | E140: Львова | F140: Анастасия | G140: Артуровна | H140: 1104120 | I140: Иностранный язык (английский) | J140: 3 | K140: Экзамен | L140: 2014/2015 учебный год 3 модуль | N140: 30 | O140: 3 | P140: 1 | Q140: 1 | R140: 414659754 | S140: 4371 | V140: Журналистика | W140: =MATCH(D140,Отчет!$D:$D,0) -> 24
A141: 508264683 | B141: 8 | C141: 447ж | D141: 475528458 | E141: Максимов | F141: Егор | G141: Игоревич | H141: 1104121 | I141: Иностранный язык (английский) | J141: 3 | K141: Экзамен | L141: 2014/2015 учебный год 3 модуль | N141: 24 | O141: 3 | P141: 1 | Q141: 1 | R141: 414659754 | S141: 4371 | V141: Журналистика | W141: =MATCH(D141,Отчет!$D:$D,0) -> 63
A142: 508264780 | B142: 10 | C142: 447ж | D142: 475528836 | E142: Павленко | F142: Валентина | G142: Юрьевна | H142: 1104126 | I142: Иностранный язык (английский) | J142: 3 | K142: Экзамен | L142: 2014/2015 учебный год 3 модуль | N142: 30 | O142: 3 | P142: 1 | Q142: 1 | R142: 414659754 | S142: 4371 | V142: Журналистика | W142: =MATCH(D142,Отчет!$D:$D,0) -> 12
A143: 508264872 | B143: 9 | C143: 447ж | D143: 475529260 | E143: Разумовская | F143: Мария | G143: Алексеевна | H143: 1104132 | I143: Иностранный язык (английский) | J143: 3 | K143: Экзамен | L143: 2014/2015 учебный год 3 модуль | N143: 27 | O143: 3 | P143: 1 | Q143: 1 | R143: 414659754 | S143: 4371 | V143: Журналистика | W143: =MATCH(D143,Отчет!$D:$D,0) -> 15
A144: 508265061 | B144: 8 | C144: 447ж | D144: 475530257 | E144: Хачатрян | F144: Ангелина | G144: Владиславовна | H144: 1104140 | I144: Иностранный язык (английский) | J144: 3 | K144: Экзамен | L144: 2014/2015 учебный год 3 модуль | N144: 24 | O144: 3 | P144: 1 | Q144: 1 | R144: 414659754 | S144: 4371 | V144: Журналистика | W144: =MATCH(D144,Отчет!$D:$D,0) -> 70
A145: 508259137 | B145: 7 | C145: 445ж | D145: 475518599 | E145: Зайцева | F145: Екатерина | G145: Николаевна | H145: 1104111 | I145: Иностранный язык (английский) | J145: 3 | K145: Экзамен | L145: 2014/2015 учебный год 3 модуль | N145: 21 | O145: 3 | P145: 1 | Q145: 1 | R145: 414659754 | S145: 4371 | V145: Журналистика | W145: =MATCH(D145,Отчет!$D:$D,0) -> 57
A146: 508259229 | B146: 7 | C146: 445ж | D146: 475519046 | E146: Латынин | F146: Антон | G146: Валерьевич | H146: 1114166 | I146: Иностранный язык (английский) | J146: 3 | K146: Экзамен | L146: 2014/2015 учебный год 3 модуль | N146: 21 | O146: 3 | P146: 1 | Q146: 1 | R146: 414659754 | S146: 4371 | V146: Журналистика | W146: =MATCH(D146,Отчет!$D:$D,0) -> 54
A147: 508259323 | B147: 7 | C147: 445ж | D147: 475519583 | E147: Рыхлик | F147: Наталья | G147: Николаевна | H147: 1104134 | I147: Иностранный язык (английский) | J147: 3 | K147: Экзамен | L147: 2014/2015 учебный год 3 модуль | N147: 21 | O147: 3 | P147: 1 | Q147: 1 | R147: 414659754 | S147: 4371 | V147: Журналистика | W147: =MATCH(D147,Отчет!$D:$D,0) -> 30
A148: 508261531 | B148: 10 | C148: 446ж | D148: 475520112 | E148: Козырев | F148: Макар | G148: Денисович | H148: 1104114 | I148: Иностранный язык (английский) | J148: 3 | K148: Экзамен | L148: 2014/2015 учебный год 3 модуль | N148: 30 | O148: 3 | P148: 1 | Q148: 1 | R148: 414659754 | S148: 4371 | V148: Журналистика | W148: =MATCH(D148,Отчет!$D:$D,0) -> 36
A149: 508263457 | B149: 6 | C149: 446ж | D149: 475520518 | E149: Нагдалиева | F149: Злата | G149: Фархадовна | H149: 1104124 | I149: Иностранный язык (английский) | J149: 3 | K149: Экзамен | L149: 2014/2015 учебный год 3 модуль | N149: 18 | O149: 3 | P149: 1 | Q149: 1 | R149: 414659754 | S149: 4371 | V149: Журналистика | W149: =MATCH(D149,Отчет!$D:$D,0) -> 45
A150: 508261719 | B150: 9 | C150: 446ж | D150: 475520912 | E150: Носик | F150: Виктория | G150: Павловна | H150: 1104125 | I150: Иностранный язык (английский) | J150: 3 | K150: Экзамен | L150: 2014/2015 учебный год 3 модуль | N150: 27 | O150: 3 | P150: 1 | Q150: 1 | R150: 414659754 | S150: 4371 | V150: Журналистика | W150: =MATCH(D150,Отчет!$D:$D,0) -> 66
A151: 508261814 | B151: 10 | C151: 446ж | D151: 475521309 | E151: Пенкина | F151: Анастасия | G151: Валерьевна | H151: 1104127 | I151: Иностранный язык (английский) | J151: 3 | K151: Экзамен | L151: 2014/2015 учебный год 3 модуль | N151: 30 | O151: 3 | P151: 1 | Q151: 1 | R151: 414659754 | S151: 4371 | V151: Журналистика | W151: =MATCH(D151,Отчет!$D:$D,0) -> 27
A152: 508261912 | B152: 8 | C152: 446ж | D152: 475521694 | E152: Полибенцева | F152: Анна | G152: Владимировна | H152: 1104129 | I152: Иностранный язык (английский) | J152: 3 | K152: Экзамен | L152: 2014/2015 учебный год 3 модуль | N152: 24 | O152: 3 | P152: 1 | Q152: 1 | R152: 414659754 | S152: 4371 | V152: Журналистика | W152: =MATCH(D152,Отчет!$D:$D,0) -> 39
A153: 508262054 | B153: 7 | C153: 446ж | D153: 475522118 | E153: Понтус | F153: Юлия | G153: Игоревна | H153: 1104131 | I153: Иностранный язык (английский) | J153: 3 | K153: Экзамен | L153: 2014/2015 учебный год 3 модуль | N153: 21 | O153: 3 | P153: 1 | Q153: 1 | R153: 414659754 | S153: 4371 | V153: Журналистика | W153: =MATCH(D153,Отчет!$D:$D,0) -> 41
A154: 508262193 | B154: 8 | C154: 446ж | D154: 475522503 | E154: Шанталова | F154: Александра | G154: Спартаковна | H154: 1104142 | I154: Иностранный язык (английский) | J154: 3 | K154: Экзамен | L154: 2014/2015 учебный год 3 модуль | N154: 24 | O154: 3 | P154: 1 | Q154: 1 | R154: 414659754 | S154: 4371 | V154: Журналистика | W154: =MATCH(D154,Отчет!$D:$D,0) -> 69
A155: 508263575 | B155: 8 | C155: 447ж | D155: 475522967 | E155: Агрызкова | F155: Юлия | G155: Игоревна | H155: 1104101 | I155: Иностранный язык (английский) | J155: 3 | K155: Экзамен | L155: 2014/2015 учебный год 3 модуль | N155: 24 | O155: 3 | P155: 1 | Q155: 1 | R155: 414659754 | S155: 4371 | V155: Журналистика | W155: =MATCH(D155,Отчет!$D:$D,0) -> 14
A156: 508267725 | B156: 10 | C156: 447ж | D156: 475523457 | E156: Акумова | F156: Анна | G156: Дмитриевна | H156: 1104102 | I156: Иностранный язык (английский) | J156: 3 | K156: Экзамен | L156: 2014/2015 учебный год 3 модуль | N156: 30 | O156: 3 | P156: 1 | Q156: 1 | R156: 414659754 | S156: 4371 | V156: Журналистика | W156: =MATCH(D156,Отчет!$D:$D,0) -> 32
A157: 508266513 | B157: 7 | C157: 447ж | D157: 481548074 | E157: Игнатчук | F157: Ольга | G157: Ивановна | H157: 1114160 | I157: Иностранный язык (английский) | J157: 4 | K157: Экзамен | L157: 2014/2015 учебный год 3 модуль | N157: 28 | O157: 4 | P157: 1 | Q157: 0 | R157: 414659754 | S157: 2098 | U157: stCommon | V157: Журналистика | W157: =MATCH(D157,Отчет!$D:$D,0) -> 73
A158: 508267570 | B158: 9 | C158: 447ж | D158: 475584015 | E158: Соловьева | F158: Маргарита | G158: Владимировна | H158: 1104135 | I158: Иностранный язык (английский) | J158: 4 | K158: Экзамен | L158: 2014/2015 учебный год 3 модуль | N158: 36 | O158: 4 | P158: 1 | Q158: 1 | R158: 414659754 | S158: 2098 | U158: stCommon | V158: Журналистика | W158: =MATCH(D158,Отчет!$D:$D,0) -> 55
A159: 508263672 | B159: 8 | C159: 447ж | D159: 475584653 | E159: Трубицына | F159: Александра | G159: Викторовна | H159: 1104137 | I159: Иностранный язык (английский) | J159: 4 | K159: Экзамен | L159: 2014/2015 учебный год 3 модуль | N159: 32 | O159: 4 | P159: 1 | Q159: 0 | R159: 414659754 | S159: 2098 | T159: ikPlanned | U159: stCommon | V159: Журналистика | W159: =MATCH(D159,Отчет!$D:$D,0) -> 72
A160: 508259403 | B160: 9 | C160: 445ж | D160: 481532512 | E160: Гудова | F160: Юлия | G160: Викторовна | H160: 11102454 | I160: Иностранный язык (английский) | J160: 4 | K160: Экзамен | L160: 2014/2015 учебный год 3 модуль | N160: 36 | O160: 4 | P160: 1 | Q160: 0 | R160: 414659754 | S160: 2098 | U160: stCommon | V160: Журналистика | W160: =MATCH(D160,Отчет!$D:$D,0) -> 64
A161: 508259513 | B161: 8 | C161: 445ж | D161: 481532910 | E161: Данилова | F161: Анастасия | G161: Андреевна | H161: 1104107 | I161: Иностранный язык (английский) | J161: 4 | K161: Экзамен | L161: 2014/2015 учебный год 3 модуль | N161: 32 | O161: 4 | P161: 1 | Q161: 0 | R161: 414659754 | S161: 2098 | U161: stCommon | V161: Журналистика | W161: =MATCH(D161,Отчет!$D:$D,0) -> 26
A162: 508263782 | B162: 7 | C162: 447ж | D162: 475523923 | E162: Асангулова | F162: Рахат | G162: Талантбековна | H162: 1114192 | I162: Иностранный язык (английский) | J162: 4 | K162: Экзамен | L162: 2014/2015 учебный год 3 модуль | N162: 28 | O162: 4 | P162: 1 | Q162: 1 | R162: 414659754 | S162: 2098 | U162: stCommon | V162: Журналистика | W162: =MATCH(D162,Отчет!$D:$D,0) -> 56
A163: 508264072 | B163: 9 | C163: 447ж | D163: 475525818 | E163: Донцова | F163: Анна | G163: Юрьевна | H163: 1104108 | I163: Иностранный язык (английский) | J163: 4 | K163: Экзамен | L163: 2014/2015 учебный год 3 модуль | N163: 36 | O163: 4 | P163: 1 | Q163: 1 | R163: 414659754 | S163: 2098 | U163: stCommon | V163: Журналистика | W163: =MATCH(D163,Отчет!$D:$D,0) -> 31
A164: 508264169 | B164: 8 | C164: 447ж | D164: 475526257 | E164: Сорокина | F164: Мария | G164: Михайловна | H164: 1104110 | I164: Иностранный язык (английский) | J164: 4 | K164: Экзамен | L164: 2014/2015 учебный год 3 модуль | N164: 32 | O164: 4 | P164: 1 | Q164: 1 | R164: 414659754 | S164: 2098 | U164: stCommon | V164: Журналистика | W164: =MATCH(D164,Отчет!$D:$D,0) -> 16
A165: 508264276 | B165: 10 | C165: 447ж | D165: 475526751 | E165: Ихно | F165: Дарья | G165: Сергеевна | H165: 1104113 | I165: Иностранный язык (английский) | J165: 4 | K165: Экзамен | L165: 2014/2015 учебный год 3 модуль | N165: 40 | O165: 4 | P165: 1 | Q165: 1 | R165: 414659754 | S165: 2098 | U165: stCommon | V165: Журналистика | W165: =MATCH(D165,Отчет!$D:$D,0) -> 34
A166: 508264375 | B166: 9 | C166: 447ж | D166: 475527155 | E166: Кристалинская | F166: Мария | G166: Валерьевна | H166: 1104115 | I166: Иностранный язык (английский) | J166: 4 | K166: Экзамен | L166: 2014/2015 учебный год 3 модуль | N166: 36 | O166: 4 | P166: 1 | Q166: 1 | R166: 414659754 | S166: 2098 | U166: stCommon | V166: Журналистика | W166: =MATCH(D166,Отчет!$D:$D,0) -> 17
A167: 508264471 | B167: 8 | C167: 447ж | D167: 475527601 | E167: Кудряшова | F167: Юлия | G167: Ивановна | H167: 1104116 | I167: Иностранный язык (английский) | J167: 4 | K167: Экзамен | L167: 2014/2015 учебный год 3 модуль | N167: 32 | O167: 4 | P167: 1 | Q167: 1 | R167: 414659754 | S167: 2098 | U167: stCommon | V167: Журналистика | W167: =MATCH(D167,Отчет!$D:$D,0) -> 40
A168: 508264569 | B168: 9 | C168: 447ж | D168: 475528055 | E168: Львова | F168: Анастасия | G168: Артуровна | H168: 1104120 | I168: Иностранный язык (английский) | J168: 4 | K168: Экзамен | L168: 2014/2015 учебный год 3 модуль | N168: 36 | O168: 4 | P168: 1 | Q168: 1 | R168: 414659754 | S168: 2098 | U168: stCommon | V168: Журналистика | W168: =MATCH(D168,Отчет!$D:$D,0) -> 24
A169: 508264671 | B169: 9 | C169: 447ж | D169: 475528458 | E169: Максимов | F169: Егор | G169: Игоревич | H169: 1104121 | I169: Иностранный язык (английский) | J169: 4 | K169: Экзамен | L169: 2014/2015 учебный год 3 модуль | N169: 36 | O169: 4 | P169: 1 | Q169: 1 | R169: 414659754 | S169: 2098 | U169: stCommon | V169: Журналистика | W169: =MATCH(D169,Отчет!$D:$D,0) -> 63
A170: 508264768 | B170: 10 | C170: 447ж | D170: 475528836 | E170: Павленко | F170: Валентина | G170: Юрьевна | H170: 1104126 | I170: Иностранный язык (английский) | J170: 4 | K170: Экзамен | L170: 2014/2015 учебный год 3 модуль | N170: 40 | O170: 4 | P170: 1 | Q170: 1 | R170: 414659754 | S170: 2098 | U170: stCommon | V170: Журналистика | W170: =MATCH(D170,Отчет!$D:$D,0) -> 12
A171: 508264860 | B171: 9 | C171: 447ж | D171: 475529260 | E171: Разумовская | F171: Мария | G171: Алексеевна | H171: 1104132 | I171: Иностранный язык (английский) | J171: 4 | K171: Экзамен | L171: 2014/2015 учебный год 3 модуль | N171: 36 | O171: 4 | P171: 1 | Q171: 1 | R171: 414659754 | S171: 2098 | U171: stCommon | V171: Журналистика | W171: =MATCH(D171,Отчет!$D:$D,0) -> 15
A172: 508265049 | B172: 8 | C172: 447ж | D172: 475530257 | E172: Хачатрян | F172: Ангелина | G172: Владиславовна | H172: 1104140 | I172: Иностранный язык (английский) | J172: 4 | K172: Экзамен | L172: 2014/2015 учебный год 3 модуль | N172: 32 | O172: 4 | P172: 1 | Q172: 1 | R172: 414659754 | S172: 2098 | U172: stCommon | V172: Журналистика | W172: =MATCH(D172,Отчет!$D:$D,0) -> 70
A173: 508259125 | B173: 8 | C173: 445ж | D173: 475518599 | E173: Зайцева | F173: Екатерина | G173: Николаевна | H173: 1104111 | I173: Иностранный язык (английский) | J173: 4 | K173: Экзамен | L173: 2014/2015 учебный год 3 модуль | N173: 32 | O173: 4 | P173: 1 | Q173: 1 | R173: 414659754 | S173: 2098 | U173: stCommon | V173: Журналистика | W173: =MATCH(D173,Отчет!$D:$D,0) -> 57
A174: 508259217 | B174: 8 | C174: 445ж | D174: 475519046 | E174: Латынин | F174: Антон | G174: Валерьевич | H174: 1114166 | I174: Иностранный язык (английский) | J174: 4 | K174: Экзамен | L174: 2014/2015 учебный год 3 модуль | N174: 32 | O174: 4 | P174: 1 | Q174: 1 | R174: 414659754 | S174: 2098 | U174: stCommon | V174: Журналистика | W174: =MATCH(D174,Отчет!$D:$D,0) -> 54
A175: 508259311 | B175: 9 | C175: 445ж | D175: 475519583 | E175: Рыхлик | F175: Наталья | G175: Николаевна | H175: 1104134 | I175: Иностранный язык (английский) | J175: 4 | K175: Экзамен | L175: 2014/2015 учебный год 3 модуль | N175: 36 | O175: 4 | P175: 1 | Q175: 1 | R175: 414659754 | S175: 2098 | U175: stCommon | V175: Журналистика | W175: =MATCH(D175,Отчет!$D:$D,0) -> 30
A176: 508261519 | B176: 10 | C176: 446ж | D176: 475520112 | E176: Козырев | F176: Макар | G176: Денисович | H176: 1104114 | I176: Иностранный язык (английский) | J176: 4 | K176: Экзамен | L176: 2014/2015 учебный год 3 модуль | N176: 40 | O176: 4 | P176: 1 | Q176: 1 | R176: 414659754 | S176: 2098 | U176: stCommon | V176: Журналистика | W176: =MATCH(D176,Отчет!$D:$D,0) -> 36
A177: 508263443 | B177: 10 | C177: 446ж | D177: 475520518 | E177: Нагдалиева | F177: Злата | G177: Фархадовна | H177: 1104124 | I177: Иностранный язык (английский) | J177: 4 | K177: Экзамен | L177: 2014/2015 учебный год 3 модуль | N177: 40 | O177: 4 | P177: 1 | Q177: 1 | R177: 414659754 | S177: 2098 | U177: stCommon | V177: Журналистика | W177: =MATCH(D177,Отчет!$D:$D,0) -> 45
A178: 508261707 | B178: 10 | C178: 446ж | D178: 475520912 | E178: Носик | F178: Виктория | G178: Павловна | H178: 1104125 | I178: Иностранный язык (английский) | J178: 4 | K178: Экзамен | L178: 2014/2015 учебный год 3 модуль | N178: 40 | O178: 4 | P178: 1 | Q178: 1 | R178: 414659754 | S178: 2098 | U178: stCommon | V178: Журналистика | W178: =MATCH(D178,Отчет!$D:$D,0) -> 66
A179: 508261802 | B179: 10 | C179: 446ж | D179: 475521309 | E179: Пенкина | F179: Анастасия | G179: Валерьевна | H179: 1104127 | I179: Иностранный язык (английский) | J179: 4 | K179: Экзамен | L179: 2014/2015 учебный год 3 модуль | N179: 40 | O179: 4 | P179: 1 | Q179: 1 | R179: 414659754 | S179: 2098 | U179: stCommon | V179: Журналистика | W179: =MATCH(D179,Отчет!$D:$D,0) -> 27
A180: 508261898 | B180: 9 | C180: 446ж | D180: 475521694 | E180: Полибенцева | F180: Анна | G180: Владимировна | H180: 1104129 | I180: Иностранный язык (английский) | J180: 4 | K180: Экзамен | L180: 2014/2015 учебный год 3 модуль | N180: 36 | O180: 4 | P180: 1 | Q180: 1 | R180: 414659754 | S180: 2098 | U180: stCommon | V180: Журналистика | W180: =MATCH(D180,Отчет!$D:$D,0) -> 39
A181: 508262042 | B181: 9 | C181: 446ж | D181: 475522118 | E181: Понтус | F181: Юлия | G181: Игоревна | H181: 1104131 | I181: Иностранный язык (английский) | J181: 4 | K181: Экзамен | L181: 2014/2015 учебный год 3 модуль | N181: 36 | O181: 4 | P181: 1 | Q181: 1 | R181: 414659754 | S181: 2098 | U181: stCommon | V181: Журналистика | W181: =MATCH(D181,Отчет!$D:$D,0) -> 41
A182: 508262160 | B182: 9 | C182: 446ж | D182: 475522503 | E182: Шанталова | F182: Александра | G182: Спартаковна | H182: 1104142 | I182: Иностранный язык (английский) | J182: 4 | K182: Экзамен | L182: 2014/2015 учебный год 3 модуль | N182: 36 | O182: 4 | P182: 1 | Q182: 1 | R182: 414659754 | S182: 2098 | U182: stCommon | V182: Журналистика | W182: =MATCH(D182,Отчет!$D:$D,0) -> 69
A183: 508263563 | B183: 10 | C183: 447ж | D183: 475522967 | E183: Агрызкова | F183: Юлия | G183: Игоревна | H183: 1104101 | I183: Иностранный язык (английский) | J183: 4 | K183: Экзамен | L183: 2014/2015 учебный год 3 модуль | N183: 40 | O183: 4 | P183: 1 | Q183: 1 | R183: 414659754 | S183: 2098 | U183: stCommon | V183: Журналистика | W183: =MATCH(D183,Отчет!$D:$D,0) -> 14
A184: 508267712 | B184: 10 | C184: 447ж | D184: 475523457 | E184: Акумова | F184: Анна | G184: Дмитриевна | H184: 1104102 | I184: Иностранный язык (английский) | J184: 4 | K184: Экзамен | L184: 2014/2015 учебный год 3 модуль | N184: 40 | O184: 4 | P184: 1 | Q184: 1 | R184: 414659754 | S184: 2098 | U184: stCommon | V184: Журналистика | W184: =MATCH(D184,Отчет!$D:$D,0) -> 32
A185: 508259616 | B185: 10 | C185: 445ж | D185: 481533400 | E185: Егорова | F185: Анна | G185: Андреевна | H185: 1114157 | I185: Иностранный язык (английский) | J185: 4 | K185: Экзамен | L185: 2014/2015 учебный год 3 модуль | N185: 40 | O185: 4 | P185: 1 | Q185: 0 | R185: 414659754 | S185: 2098 | U185: stCommon | V185: Журналистика | W185: =MATCH(D185,Отчет!$D:$D,0) -> 59
A186: 508259710 | B186: 9 | C186: 445ж | D186: 481533939 | E186: Заикина | F186: Полина | G186: Никитична | H186: 1114159 | I186: Иностранный язык (английский) | J186: 4 | K186: Экзамен | L186: 2014/2015 учебный год 3 модуль | N186: 36 | O186: 4 | P186: 1 | Q186: 0 | R186: 414659754 | S186: 2098 | U186: stCommon | V186: Журналистика | W186: =MATCH(D186,Отчет!$D:$D,0) -> 74
A187: 508259810 | B187: 10 | C187: 445ж | D187: 481534499 | E187: Калачина | F187: Анна | G187: Андреевна | H187: 1114162 | I187: Иностранный язык (английский) | J187: 4 | K187: Экзамен | L187: 2014/2015 учебный год 3 модуль | N187: 40 | O187: 4 | P187: 1 | Q187: 0 | R187: 414659754 | S187: 2098 | U187: stCommon | V187: Журналистика | W187: =MATCH(D187,Отчет!$D:$D,0) -> 46
A188: 508259946 | B188: 10 | C188: 445ж | D188: 481534976 | E188: Лукьянов | F188: Алексей | G188: Константинович | H188: 1114167 | I188: Иностранный язык (английский) | J188: 4 | K188: Экзамен | L188: 2014/2015 учебный год 3 модуль | N188: 40 | O188: 4 | P188: 1 | Q188: 0 | R188: 414659754 | S188: 2098 | U188: stCommon | V188: Журналистика | W188: =MATCH(D188,Отчет!$D:$D,0) -> 60
A189: 508260084 | B189: 8 | C189: 445ж | D189: 481535470 | E189: Рыженкова | F189: Майя | G189: Ильинична | H189: 1104133 | I189: Иностранный язык (английский) | J189: 4 | K189: Экзамен | L189: 2014/2015 учебный год 3 модуль | N189: 32 | O189: 4 | P189: 1 | Q189: 0 | R189: 414659754 | S189: 2098 | U189: stCommon | V189: Журналистика | W189: =MATCH(D189,Отчет!$D:$D,0) -> 71
A190: 508260191 | B190: 8 | C190: 445ж | D190: 481536005 | E190: Сарвина | F190: Наталья | G190: Александровна | H190: 1114181 | I190: Иностранный язык (английский) | J190: 4 | K190: Экзамен | L190: 2014/2015 учебный год 3 модуль | N190: 32 | O190: 4 | P190: 1 | Q190: 0 | R190: 414659754 | S190: 2098 | U190: stCommon | V190: Журналистика | W190: =MATCH(D190,Отчет!$D:$D,0) -> 51
A191: 508260286 | B191: 9 | C191: 445ж | D191: 481536522 | E191: Старкова | F191: Ольга | G191: Андреевна | H191: 1114184 | I191: Иностранный язык (английский) | J191: 4 | K191: Экзамен | L191: 2014/2015 учебный год 3 модуль | N191: 36 | O191: 4 | P191: 1 | Q191: 0 | R191: 414659754 | S191: 2098 | U191: stCommon | V191: Журналистика | W191: =MATCH(D191,Отчет!$D:$D,0) -> 49
A192: 508262281 | B192: 10 | C192: 446ж | D192: 481539788 | E192: Гербер | F192: Александр | G192: Романович | H192: 1114152 | I192: Иностранный язык (английский) | J192: 4 | K192: Экзамен | L192: 2014/2015 учебный год 3 модуль | N192: 40 | O192: 4 | P192: 1 | Q192: 0 | R192: 414659754 | S192: 2098 | U192: stCommon | V192: Журналистика | W192: =MATCH(D192,Отчет!$D:$D,0) -> 47
A193: 508262384 | B193: 8 | C193: 446ж | D193: 481540398 | E193: Кириллов | F193: Евгений | G193: Александрович | H193: 1114164 | I193: Иностранный язык (английский) | J193: 4 | K193: Экзамен | L193: 2014/2015 учебный год 3 модуль | N193: 32 | O193: 4 | P193: 1 | Q193: 0 | R193: 414659754 | S193: 2098 | U193: stCommon | V193: Журналистика | W193: =MATCH(D193,Отчет!$D:$D,0) -> 78
A194: 508265148 | B194: 10 | C194: 447ж | D194: 475530733 | E194: Чумакова | F194: Инга | G194: Константиновна | H194: 1104141 | I194: Иностранный язык (английский) | J194: 4 | K194: Экзамен | L194: 2014/2015 учебный год 3 модуль | N194: 40 | O194: 4 | P194: 1 | Q194: 1 | R194: 414659754 | S194: 2098 | U194: stCommon | V194: Журналистика | W194: =MATCH(D194,Отчет!$D:$D,0) -> 37
A195: 508265344 | B195: 9 | C195: 447ж | D195: 475531344 | E195: Юхим | F195: Оксана | G195: Михайловна | H195: 1104143 | I195: Иностранный язык (английский) | J195: 4 | K195: Экзамен | L195: 2014/2015 учебный год 3 модуль | N195: 36 | O195: 4 | P195: 1 | Q195: 1 | R195: 414659754 | S195: 2098 | U195: stCommon | V195: Журналистика | W195: =MATCH(D195,Отчет!$D:$D,0) -> 50
A196: 508258831 | B196: 10 | C196: 445ж | D196: 475517232 | E196: Васильева | F196: Маргарита | G196: Николаевна | H196: 1114147 | I196: Иностранный язык (английский) | J196: 4 | K196: Экзамен | L196: 2014/2015 учебный год 3 модуль | N196: 40 | O196: 4 | P196: 1 | Q196: 1 | R196: 414659754 | S196: 2098 | U196: stCommon | V196: Журналистика | W196: =MATCH(D196,Отчет!$D:$D,0) -> 42
A197: 508260678 | B197: 10 | C197: 445ж | D197: 475517709 | E197: Гликин | F197: Константин | G197: Максимович | H197: 1114153 | I197: Иностранный язык (английский) | J197: 4 | K197: Экзамен | L197: 2014/2015 учебный год 3 модуль | N197: 40 | O197: 4 | P197: 1 | Q197: 1 | R197: 414659754 | S197: 2098 | U197: stCommon | V197: Журналистика | W197: =MATCH(D197,Отчет!$D:$D,0) -> 13
A198: 508259022 | B198: 10 | C198: 445ж | D198: 475518127 | E198: Дюкарева | F198: Мария | G198: Юрьевна | H198: 1104109 | I198: Иностранный язык (английский) | J198: 4 | K198: Экзамен | L198: 2014/2015 учебный год 3 модуль | N198: 40 | O198: 4 | P198: 1 | Q198: 1 | R198: 414659754 | S198: 2098 | U198: stCommon | V198: Журналистика | W198: =MATCH(D198,Отчет!$D:$D,0) -> 43
A199: 508260378 | B199: 9 | C199: 445ж | D199: 475578675 | E199: Голиков | F199: Александр | G199: Вячеславович | H199: 1114154 | I199: Иностранный язык (английский) | J199: 4 | K199: Экзамен | L199: 2014/2015 учебный год 3 модуль | N199: 36 | O199: 4 | P199: 1 | Q199: 0 | R199: 414659754 | S199: 2098 | U199: stCommon | V199: Журналистика | W199: =MATCH(D199,Отчет!$D:$D,0) -> 77
A200: 508260493 | B200: 9 | C200: 445ж | D200: 475579340 | E200: Зиятдинова | F200: Раина | G200: Рамилевна | H200: 100036617 | I200: Иностранный язык (английский) | J200: 4 | K200: Экзамен | L200: 2014/2015 учебный год 3 модуль | N200: 36 | O200: 4 | P200: 1 | Q200: 1 | R200: 414659754 | S200: 2098 | U200: stCommon | V200: Журналистика | W200: =MATCH(D200,Отчет!$D:$D,0) -> 61
... 429 more rows
